Cogmind - Beta 11 @@@ ROGUE MODE // 2022.04.18 @ 08:49:18 Player: aperiodic Result: Destroyed by Architect with Modified Sigix Sheargun Performance ------------- Evolutions (9) 4500 Regions Visited (35) 7000 Robots Destroyed (667) 3335 Value Destroyed (36367) 36367 Prototype IDs (303) 6060 Alien Tech Used (18) 3600 Bonus (43560) 43560 TOTAL SCORE: 104422 Bonus ------- Triggered High Security 500 High Alert Combat Kills 9192 Follower Combat Kills 2070 Entered DSFs 500 Network Hubs Disabled 400 Aligned with FarCom 300 Met Zhirov 300 Met Warlord at Base 500 MAIN.C Attacked Warlord 500 Built Enhanced Grunts 300 A7 Reached Mainframe 300 Met R17 at Cetus 500 Met R17 at Research 2000 Met Warlord at Research 2000 Scanned by Researcher 500 Met Sigix 2000 Destroyed MAIN.C Guards 500 Met MAIN.C 5000 Hacked MAIN.C 300 Destroyed MAIN.C Shell 5000 Destroyed MAIN.C 10000 Met Warlord at Command 2000 Met Architect 300 Destroyed A8 300 Destroyed A6 400 Friendly Fire -2102 Cogmind --------- Core Integrity 0/1600 Matter 350/425 Energy 100/100 System Corruption 0% Temperature Cool (0) Movement Walking (120) Location -1/Access_0 Parts ------- > --- POWER (2) -------- (None) > --- PROPULSION (6) --- High-density Centrium Leg High-density Centrium Leg High-density Centrium Leg > --- UTILITY (15) ----- High-capacity Storage Unit Spectral Analyzer Experimental Terrain Scan Processor Experimental Targeting Computer Experimental Targeting Computer Experimental Core Analyzer Improved Armor Integrity Analyzer Experimental Thermal Shield > --- WEAPON (3) ------- Plasma Sword Vibroblade > --- INVENTORY (20) --- Experimental Myomer Leg Experimental Energy Well (203) Long-range Terrain Scanner Quantum Capacitor Experimental EM Disruption Field Experimental Shield Generator Spacefold Activator Potential Cannon Tiamat Missile Launcher Peak State ------------ > --- POWER ------------ Vortex Chain Reactor > --- PROPULSION ------- Enhanced Biometal Leg Enhanced Biometal Leg Enhanced Biometal Leg Myomer Exoskeleton > --- UTILITY ---------- High-capacity Storage Unit Experimental Energy Well Experimental Matter Compressor Experimental Terrain Scan Processor Experimental Targeting Computer Experimental Core Analyzer Particle Accelerator Experimental Transmission Jammer Experimental Phase Shifter Experimental Weapon Shielding Phase Armor Experimental Focal Shield Thermal Barrier AEGIS Remote Shield > --- WEAPON ----------- Sigix Shearcannon Advanced Datajack > --- INVENTORY -------- Experimental Energy Well Experimental Energy Well Long-range Terrain Scanner Experimental EM Disruption Field Transdimensional Reconstructor Spacefold Activator EMDS Enhanced Nova Cannon Enhanced Nova Cannon Potential Cannon Tiamat Missile Launcher Core Stripper [Rating: 270] Favorites ----------- Power Vortex Chain Reactor Engine Improved Deuterium Engine Power Core Reinforced Fission Core Reactor Vortex Chain Reactor Propulsion Enhanced Biometal Leg Treads Centrium Heavy Treads Leg Enhanced Biometal Leg Wheel Wheel Utility High-capacity Storage Unit Device Experimental Cooling System Storage High-capacity Storage Unit Processor Experimental Targeting Computer Hackware Advanced Hacking Suite Protection Medium Reactive Plating Artifact Phase Armor Weapon Advanced KE Penetrator Energy Gun Quantum Rifle Energy Cannon Enhanced Nova Cannon Ballistic Gun Advanced KE Penetrator Ballistic Cannon Antimatter Cannon Launcher Grenade Launcher Special Weapon Improved Plasma Cutter Impact Weapon Core Stripper Slashing Weapon Centrium Greatsword Piercing Weapon Vortex Lance Special Melee Weapon Advanced Datajack Build | -11 -10 -10 -9 -9 -9 -8 -8 -8 -7 -7 -7 -7 -6 -6 -6 -6 -6 -5 -5 -5 -5 -4 -4 -4 -4 -4 -3 -3 -3 -2 -2 -2 -1 -1 -1 ------- Run | Scr Mat Min Mat Min Exi Min Mat Sto Fac Was Fac DSF Fac Ext Cet Arc Hub Fac Upp Upp Zhi Pro Fac Upp Upp War Pro Res Tes Res Qua Sec Acc Com Ac0 Slots Evolved 18 | . . . 2 . . . 2 . 2 . . . 2 . . . . 2 . . . . 2 . . . . 2 . 2 . . 2 . . Power 1 | . . . . . . . . . . . . . . . . . . 1 . . . . . . . . . . . . . . . . . Propulsion 3 | . . . . . . . 1 . 1 . . . . . . . . 1 . . . . . . . . . . . . . . . . . Utility 13 | . . . 1 . . . 1 . 1 . . . 2 . . . . . . . . . 2 . . . . 2 . 2 . . 2 . . Weapon 1 | . . . 1 . . . . . . . . . . . . . . . . . . . . . . . . . . . . . . . . Parts Attached 750 | 6 18 7 6 6 34 . 47 32 43 7 . 7 30 14 16 13 39 33 11 1 7 9 59 8 4 14 8 20 36 16 48 45 8 63 35 Power 30 | 1 2 1 . . 3 . . 5 4 2 . . . . 3 . 3 1 . . 1 . . . . 1 . . . 2 . . . 1 . Engine 10 | 1 2 1 . . 2 . . 2 2 . . . . . . . . . . . . . . . . . . . . . . . . . . Core 8 | . . . . . 1 . . 3 2 1 . . . . 1 . . . . . . . . . . . . . . . . . . . . Reactor 12 | . . . . . . . . . . 1 . . . . 2 . 3 1 . . 1 . . . . 1 . . . 2 . . . 1 . Propulsion 64 | 2 2 . . . 4 . 11 5 4 2 . . 2 . 2 . 5 1 . . . . 3 1 . 2 . . 2 . 5 2 . 5 4 Treads 19 | . . . . . . . 6 5 1 2 . . 2 . 2 . 1 . . . . . . . . . . . . . . . . . . Leg 37 | . . . . . 3 . 5 . . . . . . . . . 4 1 . . . . 3 1 . 2 . . 2 . 5 2 . 5 4 Wheel 8 | 2 2 . . . 1 . . . 3 . . . . . . . . . . . . . . . . . . . . . . . . . . Hover . | . . . . . . . . . . . . . . . . . . . . . . . . . . . . . . . . . . . . Flight . | . . . . . . . . . . . . . . . . . . . . . . . . . . . . . . . . . . . . Utility 409 | 1 5 4 3 4 14 . 25 5 11 . . 3 20 12 5 9 19 23 8 . 3 6 33 5 1 6 7 17 27 10 28 35 6 35 19 Device 279 | . . 2 1 2 11 . 15 3 7 . . 1 11 9 4 6 14 19 8 . 3 5 25 5 1 4 6 13 20 7 20 22 3 22 10 Storage 18 | 1 1 . 1 . . . 1 1 . . . . 1 . . . . . . . . . 1 . . . . 1 3 1 . . . 4 2 Processor 8 | . . . . . . . . . . . . . . 1 . . 1 1 . . . . . . . . . . . 1 . . 1 3 . Hackware 9 | . . . . . . . 1 . . . . . 3 . . . 1 1 . . . . 1 . . . . . . . 1 . . 1 . Protection 91 | . 4 2 1 2 3 . 8 1 4 . . 2 5 2 1 3 3 2 . . . 1 6 . . 2 1 3 4 1 6 12 2 4 6 Artifact 4 | . . . . . . . . . . . . . . . . . . . . . . . . . . . . . . . 1 1 . 1 1 Weapon 247 | 2 9 2 3 2 13 . 11 17 24 3 . 4 8 2 6 4 12 8 3 1 3 3 23 2 3 5 1 3 7 4 15 8 2 22 12 Energy Gun 18 | . 1 . . 1 2 . 1 5 1 . . . . . . . . . . . . . . . . . . . . . 7 . . . . Energy Cannon 63 | . . . . . . . . . 1 . . 2 . 1 . . 2 2 2 1 . . 4 1 . . 1 2 5 2 6 6 2 13 10 Ballistic Gun 104 | 2 5 1 2 1 7 . 9 6 15 3 . . 7 1 5 3 7 5 1 . 3 1 11 1 3 3 . . . 2 . . . . . Ballistic Cannon 1 | . . . . . . . . . . . . 1 . . . . . . . . . . . . . . . . . . . . . . . Launcher 29 | . . 1 1 . 2 . . 1 6 . . . 1 . . . 3 1 . . . 1 4 . . 1 . 1 1 . . . . 5 . Special Weapon 3 | . 1 . . . 1 . . . . . . . . . . . . . . . . . . . . . . . . . . . . 1 . Impact Weapon 9 | . 2 . . . 1 . . . . . . . . . . . . . . . . . . . . . . . . . 2 2 . 2 . Slashing Weapon 17 | . . . . . . . 1 5 1 . . 1 . . 1 1 . . . . . 1 4 . . . . . . . . . . . 2 Piercing Weapon 2 | . . . . . . . . . . . . . . . . . . . . . . . . . . 1 . . 1 . . . . . . Special Melee Weapon 1 | . . . . . . . . . . . . . . . . . . . . . . . . . . . . . . . . . . 1 . Unidentified Prototypes 74 | . . 2 . . 4 . 2 4 6 . . 1 . . 3 . 5 . 1 . 3 . 1 1 . 5 . 1 9 6 6 11 1 2 . Corrupted Parts 8 | . . . . . . . . . 3 . . 1 . . 3 1 . . . . . . . . . . . . . . . . . . . System Corruption 52 | . . . . . . . . . 23 . . 10 . . 10 9 . . . . . . . . . . . . . . . . . . . Parts Lost 46 | . 7 . . 5 2 . . . 2 . . . . . . . . 1 . . . . . 1 . . . . 1 1 1 . 1 7 17 Power 2 | . 1 . . . . . . . . . . . . . . . . . . . . . . . . . . . . . . . . . 1 Propulsion 7 | . 2 . . 1 . . . . . . . . . . . . . . . . . . . . . . . . . . . . . . 4 Utility 28 | . 2 . . 1 1 . . . 2 . . . . . . . . 1 . . . . . 1 . . . . 1 1 1 . 1 7 9 Weapon 9 | . 2 . . 3 1 . . . . . . . . . . . . . . . . . . . . . . . . . . . . . 3 Highest Loss Streak 10 | . 5 . . 5 1 . . . 2 . . . . . . . . 1 . . . . . 1 . . . . 1 1 1 . 1 3 10 To Critical Strikes 4 | . . . . . . . . . . . . . . . . . . . . . . . . . . . . . . . . . . . 4 Average Slot Usage (%) 84 | . 97 100 100 81 87 100 99 98 84 83 84 82 85 85 85 85 82 97 89 87 91 93 90 94 95 95 86 85 71 65 70 70 75 75 76 Engine 1 | . 13 14 11 11 11 11 9 1 4 . . . . . . . . . . . . . . . . . . . . . . . . . . Core 1 | . . . . . . . . 7 2 6 7 7 6 6 1 . . . . . . . . . . . . . . . . . . . . Reactor 3 | . . . . . . . . . . . . . . . 4 6 6 11 11 11 11 11 10 10 10 7 5 4 4 3 4 4 3 3 2 Treads 4 | . . . . . . . 11 26 . 13 15 15 12 13 13 13 12 . . . . . . . . . . . . . . . . . . Leg 12 | . . . . . 8 22 15 . . . . . . . . . 1 28 29 29 29 29 25 27 30 30 30 27 18 16 15 16 15 14 17 Wheel 2 | . 27 28 22 15 7 . . . 14 1 . . . . . . . . . . . . . . . . . . . . . . . . . Device 15 | . . . . 7 11 11 8 9 14 15 15 15 21 18 19 26 19 14 10 11 11 10 9 14 15 14 11 17 12 12 13 14 18 20 12 Storage 6 | . 14 14 11 11 11 11 9 9 7 7 7 7 6 6 6 6 6 5 5 5 5 5 5 5 5 5 5 4 4 4 4 4 3 7 3 Processor 5 | . . . . . . . . . . . . . . 1 5 . . 5 11 11 11 11 10 10 10 10 10 9 5 7 8 8 11 13 23 Hackware 3 | . . . . . . . 7 9 1 . . . 4 6 1 . 4 4 . . . . 5 5 5 5 5 4 4 4 7 8 7 1 . Protection 8 | . 12 13 21 14 9 11 11 9 13 15 15 15 12 12 13 12 10 5 5 5 5 5 10 10 10 8 8 9 11 6 2 2 3 1 7 Energy Cannon 3 | . . . . . . . . . . . . 1 5 1 . . . 1 4 10 6 . 1 9 9 . 3 8 8 7 5 7 6 6 6 Ballistic Gun 10 | . 23 27 33 17 17 33 25 21 18 22 23 17 12 18 18 18 19 15 7 . 8 15 7 . . 14 8 . . . . . . . . Naked Turns . | . . . . . . . . . . . . . . . . . . . . . . . . . . . . . . . . . . . . Heaviest Build 183 | 10 34 35 42 42 56 45 46 74 103 105 105 105 107 112 111 113 131 121 144 144 144 132 149 149 136 136 138 142 162 164 177 175 175 183 159 Greatest Support 192 | 20 26 26 26 26 60 50 60 64 82 140 140 140 140 140 160 160 160 150 150 150 150 150 150 180 150 170 170 170 185 185 190 190 190 192 190 Greatest Overweight (x) 37 | 1 1 1 1 4 4 . 1 1 2 1 . . 1 . . 37 . . . . . . 1 . . . . . . . 1 . . 1 1 Average Overweight (x) . | . . 1 1 2 2 . . . . . . . . . . 14 . . . . . . . . . . . . . . . . . . . Largest Inventory Capacity 20 | 8 15 15 15 15 15 15 15 20 20 20 20 20 20 20 20 20 20 20 20 20 20 20 20 20 20 20 20 20 20 20 20 20 20 20 20 Average Capacity 19 | 6 13 15 15 15 15 15 15 15 20 20 20 20 20 20 20 20 20 20 20 20 20 20 20 20 20 20 20 20 20 20 20 20 20 20 20 Most Carried 20 | 4 13 12 13 13 15 15 15 19 20 20 20 20 20 20 20 20 20 20 20 20 20 20 20 18 15 20 20 20 20 20 20 20 18 20 20 Average Carried 17 | 2 9 10 11 12 12 15 14 15 19 19 20 19 19 19 19 19 19 18 19 19 19 19 19 15 14 17 19 18 19 19 19 19 16 15 15 Final Capacity 20 | 8 15 15 15 15 15 15 15 20 20 20 20 20 20 20 20 20 20 20 20 20 20 20 20 20 20 20 20 20 20 20 20 20 20 20 20 Final Carried 20 | 4 9 12 13 11 15 15 15 19 20 20 20 20 20 20 20 20 20 20 20 20 20 20 18 15 15 20 20 20 20 20 20 18 18 19 11 Class Distribution -------------------- 31% | Scavenger-Mutant 20% | Scavenger-Tank 18% | Mutant 17% | Tank 5% | Hacker-Mutant Dominant Class ---------------- Mutant | -10/Materials Mutant | -10/Mines Tank | -9/Materials Mutant | -9/Mines Mutant | -9/Exiles Tank | -8/Mines Tank | -8/Materials Tank | -8/Storage Tank | -7/Factory Mutant | -7/Waste Mutant | -7/Factory Tank | -7/DSF Tank | -6/Factory Tank | -6/Extension Commander-Tank | -6/Cetus Scavenger-Tank | -6/Archives Scavenger-Tank | -6/Hub_04(d) Scavenger-Tank | -5/Factory Scavenger-Mutant | -5/Upper Caves Scavenger-Mutant | -5/Upper Caves Scavenger-Mutant | -5/Zhirov Scavenger-Tank | -4/Proximity Caves Scavenger-Mutant | -4/Factory Scavenger-Mutant | -4/Upper Caves Scavenger-Mutant | -4/Upper Caves Scavenger-Tank | -4/Warlord Scavenger-Tank | -3/Proximity Caves Scavenger-Mutant | -3/Research Scavenger-Mutant | -3/Testing Mutant | -2/Research Hacker-Mutant | -2/Quarantine Scavenger-Mutant | -2/Section 7 Scavenger-Mutant | -1/Access Scavenger-Mutant | -1/Command Scavenger-Mutant | -1/Access_0 Resources | -11 -10 -10 -9 -9 -9 -8 -8 -8 -7 -7 -7 -7 -6 -6 -6 -6 -6 -5 -5 -5 -5 -4 -4 -4 -4 -4 -3 -3 -3 -2 -2 -2 -1 -1 -1 ----------- Run | Scr Mat Min Mat Min Exi Min Mat Sto Fac Was Fac DSF Fac Ext Cet Arc Hub Fac Upp Upp Zhi Pro Fac Upp Upp War Pro Res Tes Res Qua Sec Acc Com Ac0 Matter Collected 22569 | 272 428 113 180 96 673 77 1902 629 1681 488 . 486 981 774 314 179 1801 1258 311 40 80 255 1313 369 105 162 315 361 873 340 735 1801 705 2242 230 Remotely 3130 | . . . . . . . . . . . . . 200 268 . . 1048 439 . . . . 667 . . . 35 100 373 . . . . . . Salvage Created 37540 | 76 506 113 345 17 94 66 1601 434 1857 . . 586 1750 1925 335 325 3522 1860 404 71 . 353 3028 244 190 . 391 615 2781 617 2940 3641 2064 3946 843 Parts 1560 | 5 20 5 23 1 3 3 93 15 103 . . 35 78 51 16 21 165 106 19 5 . 14 122 6 10 . 12 22 85 21 120 126 64 159 32 Haulers Intercepted 31 | . 2 . 1 . . . 5 2 1 . . 1 3 . . . 2 . 1 . . . 5 . . . . 3 2 1 . . 2 . . Recyclers Shooed 13 | . 1 . . . . . 1 . 1 . . . 7 1 . . . . . . . . . . . . . . . . . . . 2 . Parts Field Recycled . | . . . . . . . . . . . . . . . . . . . . . . . . . . . . . . . . . . . . Retrieved Matter . | . . . . . . . . . . . . . . . . . . . . . . . . . . . . . . . . . . . . Parts Self-Destructed 75 | . . . . . . . . . . . . . . . . . . . 19 . . 11 . 5 5 30 5 . . . . . . . . Prevented 24 | . . . . . . . . . . . . . . . . . . . . 5 . . . 1 4 9 5 . . . . . . . . Kills | -11 -10 -10 -9 -9 -9 -8 -8 -8 -7 -7 -7 -7 -6 -6 -6 -6 -6 -5 -5 -5 -5 -4 -4 -4 -4 -4 -3 -3 -3 -2 -2 -2 -1 -1 -1 ------- Run | Scr Mat Min Mat Min Exi Min Mat Sto Fac Was Fac DSF Fac Ext Cet Arc Hub Fac Upp Upp Zhi Pro Fac Upp Upp War Pro Res Tes Res Qua Sec Acc Com Ac0 Combat Hostiles Destroyed 504 | . 9 3 6 1 3 . 18 6 43 . . 11 21 21 4 1 47 33 5 1 . 6 35 6 2 . 6 4 30 6 38 40 22 65 11 Melee 17 | . 1 . . . . . . . . . . . . 1 . . . . . . . . 13 . . . . . 2 . . . . . . Guns 185 | . 5 1 4 1 1 . 18 6 17 . . 11 13 15 4 1 30 29 5 . . 3 11 . 1 . 2 . . . 7 . . . . Cannons 108 | . . . . . . . . . . . . . 5 5 . . . . . 1 . . . 5 . . 2 1 11 1 20 16 9 23 9 AOE 104 | . . 2 2 . 2 . . . 25 . . . 2 . . . 16 4 . . . 3 11 1 . . . . 2 . 4 1 . 27 2 Classes Destroyed 30 | 2 4 1 1 2 2 . 1 . 7 . . 2 . 1 . . 1 . . . . 1 . . . . 1 . . 1 1 . . 2 . Worker 31 | . . . . 1 . . 2 . 5 . . . 2 . . . 7 2 . . . . 5 . . . . 1 1 1 . . . 4 . Builder 11 | . . . . . . . . . 1 . . . . . . . 2 1 . . . . 2 . . . . . 3 . . 1 1 . . Tunneler 5 | 1 . . . . . . . . 1 . . . . . . . 1 1 . . . . . . . . . 1 . . . . . . . Hauler 31 | . 2 . 1 . . . 5 2 1 . . 1 3 . . . 2 . 1 . . . 5 . . . . 3 2 1 . . 2 . . Recycler 24 | 1 . . . . . 1 3 1 2 . . . 4 3 . . 4 . . . . . 2 . . . . . 2 . . . . 1 . Carrier 1 | . . . . . . . . . . . . . . . . . 1 . . . . . . . . . . . . . . . . . . Mechanic 8 | . . . . . . . . . 2 . . . . 1 . . . 2 . . . . 1 . . . . . 1 . . . . 1 . Operator 16 | . 1 . 1 . . . 1 . . . . . 2 . . 7 1 . . . . . . . . . . 1 . . 1 . . 1 . Drone 2 | . . . . . . . . . 2 . . . . . . . . . . . . . . . . . . . . . . . . . . Turret 1 | . . . . . 1 . . . . . . . . . . . . . . . . . . . . . . . . . . . . . . Watcher 35 | . 2 . 2 . . . 5 . 2 . . . 3 . . . . 2 . . . . 5 . . . . 1 3 1 2 5 1 1 . Swarmer 67 | . . 3 . . . . . . 10 . . 3 6 . . . 4 9 . . . . 6 4 . . . 1 . . 4 . 2 15 . Saboteur 2 | . . . . . . . . . . . . . . 1 . . . . . . . . . . . . . . . . . . . 1 . Grunt 154 | . 9 . 4 . . . 9 3 16 . . 4 5 9 . . 12 8 5 . . 4 13 . . . . . 11 2 7 9 7 17 . Brawler 23 | . . . . . . . . . . . . 1 1 2 . . 6 3 . . . . 2 . . . . . 3 . . 1 . 4 . Duelist 15 | . . . . . . . . . 1 . . . . 2 . . 4 4 . . . . . . . . . . 2 . . 1 . 1 . Protector 8 | . . . . . . . . . 1 . . . . . . . 4 . . . . . . . . . . . . . . . . 3 . Sentry 61 | . . . 2 . . . 5 2 3 . . 1 2 7 . 1 6 2 . 1 . 1 7 . 1 . . . . 2 3 9 1 5 . Specialist 6 | . . . . . . . . . 4 . . 1 . . . . 1 . . . . . . . . . . . . . . . . . . Hunter 53 | . . . . . . . 4 1 2 . . . 4 . 1 . 2 3 . . . . . 2 . . 2 2 9 . 3 4 11 3 . Programmer 63 | . . . . . . . . . 6 . . . 3 . . . 1 4 . . . 1 7 . 1 . . 1 5 . 17 10 . 7 . Heavy 5 | . . . . . . . . . . . . 1 . . . . 1 . . . . . . . . . . . . . . 1 1 1 . Behemoth 5 | . . . . . . . . . . . . . . . . . . . . . . . . . . . 1 . . . . 2 . 2 . Cetus Guard 3 | . . . . . . . . . . . . . . . 3 . . . . . . . . . . . . . . . . . . . . S7 Guard 3 | . . . . . . . . . . . . . . . . . . . . . . . . . . . . . . . . 3 . . . M Guard 2 | . . . . . . . . . . . . . . . . . . . . . . . . . . . . . . . . . . 2 . Enhanced Grunt 5 | . . . . . . . . . . . . . . . . . . . . . . . . . . . . . . . . . . . 5 Enhanced Sentry 2 | . . . . . . . . . . . . . . . . . . . . . . . . . . . . . . . . . . . 2 Enhanced Hunter 2 | . . . . . . . . . . . . . . . . . . . . . . . . . . . . . . . . . . . 2 Lightning 9 | . . . . . . . . . . . . . . . . . 6 . . . . . . . . . . . . . 3 . . . . Combat Programmer 1 | . . . . . . . . . . . . . . . . . . . . . . . . . . . . . . . . . . 1 . Investigator 1 | . . . . . . . . . . . . . . . . . . . . . . . . . . . . . . . . . . 1 . Striker 2 | . . . . . . . . . . . . . . . . . . . . . . . . . . . . . . 2 . . . . . Executioner 1 | . . . . . . . . . . . . . . . . . . . . . . . . . . . . . . . . . . 1 . Fortress 1 | . . . . . . . . . . . . . . . . . . . . . . . . . . . . . . . 1 . . . . Zionite 3 | . . . . . 3 . . . . . . . . . . . . . . . . . . . . . . . . . . . . . . Samaritan 6 | . . . . . . . . . . . . . . . . . . . . . . 1 . 2 1 . 2 . . . . . . . . Assembled 7 | . . . . 1 3 . . . . . . . . . . . . . . . . . . . . . 3 . . . . . . . . Thug 1 | . . . . . . . . . . . . . . 1 . . . . . . . . . . . . . . . . . . . . . Savage 1 | . . . . . . . . . . . . . . 1 . . . . . . . . . . . . . . . . . . . . . Guerrilla 2 | . . . . . . . . . . . . . . . 1 . . . . . . . . . . . . . . . . . . 1 . Best Kill Streak 28 | 2 3 2 5 1 3 1 6 3 10 . . 4 6 7 2 2 28 9 5 1 . 4 14 3 1 . 2 4 9 2 5 5 12 10 3 Combat Bots Only 19 | . 4 2 3 1 3 . 3 3 9 . . 3 5 5 2 1 19 6 5 1 . 4 10 3 1 . 2 2 9 2 5 5 10 9 3 Max Kills in Single Turn 8 | 1 1 2 2 1 1 1 2 1 8 . . 2 3 3 2 1 6 2 1 1 . 3 3 1 1 . 1 1 2 2 2 2 2 4 1 Gunslinging 1 | . . . . . . . . . . . . . 1 . . . . . . . . . 1 . . . . . . . . . . . . Exploded 6 | . . 2 2 . 1 . . . 6 . . . 2 . . . 6 2 . . . 3 3 1 . . . . 1 . 2 1 . 4 1 Melee 1 | . 1 . . . . . . . . . . . . 1 . . . . . . . . 1 . . . . . 1 . . . . . . Uniques/NPCs Destroyed 8 | . . 1 . . 4 . . . . . . . . . . . . . . . . . . . . . . . . . . . . 1 2 YI-UF0 (-10/Mines) 8R-AWN (-9/Exiles) EX-BIN (-9/Exiles) EX-HEX (-9/Exiles) EX-DEC (-9/Exiles) MAIN.C (-1/Command) A8 (-1/Access_0) A6 (-1/Access_0) Combat | -11 -10 -10 -9 -9 -9 -8 -8 -8 -7 -7 -7 -7 -6 -6 -6 -6 -6 -5 -5 -5 -5 -4 -4 -4 -4 -4 -3 -3 -3 -2 -2 -2 -1 -1 -1 -------- Run | Scr Mat Min Mat Min Exi Min Mat Sto Fac Was Fac DSF Fac Ext Cet Arc Hub Fac Upp Upp Zhi Pro Fac Upp Upp War Pro Res Tes Res Qua Sec Acc Com Ac0 Damage Taken 26066 | . 914 67 132 515 284 . 682 242 1894 . . 304 938 803 43 32 2592 745 205 . . 32 1179 307 4 473 109 197 846 307 1020 1528 613 2841 6218 Core 3036 | . 102 29 . 50 14 . 20 26 177 . . 14 60 46 17 . 86 63 . . . . 47 24 . 85 . 46 26 17 168 369 104 622 824 Absorbed by Shields 11766 | . . . . . . . . . . . . . . . 16 11 335 171 . . . 34 1262 324 6 184 114 . 702 299 932 1448 587 1847 3494 Reduced by Siege Mode 197 | . . . . . . . . . . . . 7 52 18 . . 120 . . . . . . . . . . . . . . . . . . Redirected to Core 949 | . . . . . . . . . . . . . . . . . . . . . . . . . . . . . . . 112 311 96 430 . Redirected to Shielding 1202 | . . . . . . . . . . . . . . . . . . . . . . . . 22 . . . 21 110 59 150 172 158 333 177 Regen/Repaired (Parts) 4783 | . . . . . . . 77 501 . . . . 854 216 . . . 785 . . . . 477 . . . . 277 65 80 450 864 . 137 . Core Remaining (%) 78 | 100 . 47 . . . 84 . 91 . . . 72 . . . . 75 . . . . 93 . . . . 86 . 94 . . 43 . . . Volleys Fired 1590 | 6 31 21 20 10 38 2 99 20 94 . . 31 80 60 14 2 94 64 14 2 . 9 65 25 6 . 23 53 99 18 108 141 70 162 109 Largest 3 | 2 2 2 3 3 2 3 3 3 3 . . 3 3 3 3 3 3 3 3 1 . 3 3 3 3 . 3 1 1 1 3 1 1 1 1 Hottest 282 | 40 100 40 60 88 100 83 83 75 166 . . 105 65 80 100 85 105 105 85 70 . 100 190 190 120 . 105 120 200 70 282 200 120 200 200 Shots Fired 2868 | 12 61 41 54 23 61 6 268 60 237 . 1 81 217 152 37 6 262 177 40 2 . 23 140 38 14 . 31 53 100 18 167 145 70 162 109 Gun 1894 | 12 59 40 51 23 54 6 268 60 219 . 1 77 155 124 37 6 252 161 39 . . 21 115 4 9 . 12 . . . 89 . . . . Cannon 889 | . . . . . . . . . . . . 4 61 28 . . 5 13 1 2 . . 15 31 5 . 19 53 100 18 78 145 70 132 109 Launcher 73 | . . 1 3 . 6 . . . 18 . . . 1 . . . 5 3 . . . 2 10 3 . . . . . . . . . 21 . Special 12 | . 2 . . . 1 . . . . . . . . . . . . . . . . . . . . . . . . . . . . 9 . Kinetic 1754 | 12 57 40 51 18 42 6 268 60 187 . 1 77 155 124 37 6 252 161 39 . . 21 115 4 9 . 12 . . . . . . . . Thermal 572 | . 2 . . 5 10 . . . 32 . . 4 61 28 . . 3 13 1 . . . 15 16 2 . . 36 50 . 144 53 6 59 32 Explosive 59 | . . 1 3 . 6 . . . 6 . . . 1 . . . 5 3 . . . 2 8 3 . . . . . . . . . 21 . Electromagnetic 388 | . 2 . . . 3 . . . 12 . . . . . . . 2 . . 2 . . 2 15 3 . 19 17 50 18 23 92 64 62 2 Slashing 95 | . . . . . . . . . . . . . . . . . . . . . . . . . . . . . . . . . . 20 75 Robot Hit Streak 36 | 6 15 9 6 7 5 2 31 10 10 . . 17 13 11 9 5 18 19 15 17 . 28 24 10 9 . 8 10 23 10 19 17 27 30 36 Robot Miss Streak 7 | 1 5 6 3 6 6 4 7 3 5 . . 5 3 3 3 1 5 3 1 . . 5 3 5 1 . 1 1 1 1 3 2 2 3 6 Penetration Max 2 | . . . . . 1 1 1 . . . . 1 1 2 1 . 2 2 1 . . . 1 . . . 1 1 1 1 1 1 1 1 1 Secondary Targets 31 | . 2 . . . . . 1 . 2 . . 1 1 2 1 . 11 3 3 . . . 3 . . . . . . . 1 . . . . Max Gunslinging Chain 1 | . 1 . . . . . 1 . 1 . . 1 1 1 1 . 1 1 1 . . . 1 . . . . . . . 1 . . . . Capacitor 511 | . . . . . . . . . . . . . . . . . . . . . . . . . . . . . . 18 61 145 70 108 109 Shots Hit Robots 1933 | 10 58 23 27 18 36 2 167 40 123 . . 49 136 87 23 14 195 120 30 2 . 18 121 20 10 . 18 16 63 15 119 104 47 116 106 Core Hits 1379 | 5 21 11 21 10 16 1 63 15 131 . . 19 70 49 9 8 169 85 13 2 . 24 86 12 4 . 8 4 40 6 67 46 28 189 147 Critical Kills 82 | . 3 . . . 1 . 3 . 1 . . 6 2 13 3 . 21 15 . . . 2 8 . . . 2 1 . . . 1 . . . Critical Parts Destroyed 100 | . 2 . 1 . 1 . 6 . 1 . . 4 2 18 . . 30 23 2 . . 1 7 . . . 2 . . . . . . . . Critical Strikes 269 | . 5 . 1 . 2 . 9 . 2 . . 10 5 32 3 1 53 40 2 1 . 4 25 . 1 . 6 2 12 4 5 20 4 15 5 Meltdown 4 | . . . . . . . . . . . . . 1 1 . . . . . . . . . . . . . 1 . . . 1 . . . Destroy 185 | . 1 . 1 . 2 . 9 . 2 . . 10 4 31 3 1 53 40 2 . . 4 18 . . . 4 . . . . . . . . Corrupt 61 | . . . . . . . . . . . . . . . . . . . . 1 . . . . 1 . 2 1 10 4 5 19 4 14 . Smash 4 | . 4 . . . . . . . . . . . . . . . . . . . . . . . . . . . . . . . . . . Sever 13 | . . . . . . . . . . . . . . . . . . . . . . . 7 . . . . . . . . . . 1 5 Sunder 2 | . . . . . . . . . . . . . . . . . . . . . . . . . . . . . 2 . . . . . . Melee Attacks 147 | . 27 . . . . . 5 16 . . . 2 . . 1 9 . . . . . 1 57 . . 1 . . 6 . 1 7 . 4 10 Kinetic 11 | . . . . . . . . . . . . . . . . . . . . . . . . . . . . . . . 1 7 . 3 . Impact 27 | . 27 . . . . . . . . . . . . . . . . . . . . . . . . . . . . . . . . . . Slashing 101 | . . . . . . . 5 16 . . . 2 . . 1 9 . . . . . 1 57 . . . . . . . . . . . 10 Piercing . | . . . . . . . . . . . . . . . . . . . . . . . . . . . . . . . . . . . . Entropic 7 | . . . . . . . . . . . . . . . . . . . . . . . . . . 1 . . 6 . . . . . . Sneak Attacks 20 | . 2 . . . . . . 2 . . . . . . . 8 . . . . . 1 5 . . . . . . . . 1 . 1 . Combat Hostiles 3 | . . . . . . . . . . . . . . . . . . . . . . . 1 . . . . . . . . 1 . 1 . Follow-up Attacks 1 | . . . . . . . . . . . . . . . . . . . . . . . . . . . . . . . . . . . 1 Damage Inflicted 93544 | 85 794 294 532 210 511 73 2767 774 5473 . . 1015 3722 2429 635 1510 8141 4535 767 82 . 921 7902 1201 363 19 711 1364 5655 893 5932 5567 3292 14372 11003 Guns 27655 | 85 394 178 300 210 389 73 2760 614 2591 . . 1015 2218 2026 635 134 4635 3292 767 . . 301 2576 51 234 . 218 . . . 1959 . . . . Cannons 35931 | . . . . . . . . . . . . . 1230 403 . . 78 204 . 82 . . . 707 129 . 493 1279 4186 893 3228 5113 3292 6826 7788 Explosions 22993 | . 59 116 232 . 122 . . . 2882 . . . 218 . . . 3411 891 . . . 486 2175 443 . . . . 1001 . 745 215 . 7040 2957 Melee 6081 | . 341 . . . . . . 125 . . . . . . . 1376 . . . . . 134 3139 . . . . . 379 . . 239 . 90 258 Ramming 770 | . . . . . . . 7 35 . . . . 56 . . . 17 148 . . . . 12 . . 19 . 85 89 . . . . 302 . Kinetic 25502 | 85 370 178 300 152 268 73 2760 614 2271 . . 1015 2218 2026 635 134 4635 3292 767 . . 301 2576 51 234 . 218 . . . . 239 . 90 . Thermal 18754 | . 59 . . 58 95 . . . 320 . . . 1230 403 . . 37 204 . . . . 107 343 45 . . 198 1936 . 4614 1457 . 1468 6180 Explosive 16113 | . . 116 232 . 122 . . . 2338 . . . 218 . . . 2406 891 . . . 486 1821 443 . . . . . . . . . 7040 . Electromagnetic 20053 | . 24 . . . 26 . . . 544 . . . . . . . 1046 . . 82 . . 247 364 84 . 493 1081 3251 893 1318 3871 3292 3395 42 Impact 341 | . 341 . . . . . . . . . . . . . . . . . . . . . . . . . . . . . . . . . . Slashing 11632 | . . . . . . . . 125 . . . . . . . 1376 . . . . . 134 3139 . . . . . . . . . . 2077 4781 Piercing . | . . . . . . . . . . . . . . . . . . . . . . . . . . . . . . . . . . . . Entropic 379 | . . . . . . . . . . . . . . . . . . . . . . . . . . . . . 379 . . . . . . Highest Corruption 36 | . 3 3 . . . . . . 26 26 26 36 2 . 10 10 7 2 2 . . 1 4 4 4 4 . . 2 . 5 7 . . . Average Corruption 6 | . 1 3 . . . . . . 11 26 26 27 1 . 9 8 4 1 1 . . 1 1 4 4 4 . . 1 . 3 6 . . . Corruption Purged 23 | . . . . . . . . . . . . . 2 . . 19 . . 2 . . . . . . . . . . . . . . . . Corruption Blocked 21 | . . . . . . . . . . . . . . . . . . . . . . . . . . . . . . 12 . . . 9 . Effects 290 | . 3 5 . . . . . . 53 19 4 23 16 . 10 9 13 10 3 . . 2 8 12 10 . . . 3 . 27 60 . . . Message Errors 56 | . . 1 . . . . . . 10 5 1 4 1 . 3 4 2 2 1 . . . 1 3 2 . . . . . 5 11 . . . Matter Fused 66 | . 2 1 . . . . . . 6 5 1 6 3 . . 3 2 . 1 . . . 2 5 . . . . 2 . 5 22 . . . Heat Flow Errors 37 | . . 1 . . . . . . 4 2 . 2 2 . 1 1 2 2 1 . . . . . 2 . . . . . 6 11 . . . Energy Discharges 29 | . . 1 . . . . . . 4 1 1 3 2 . 3 . 2 1 . . . . 2 . 1 . . . . . 4 4 . . . Parts Rejected 6 | . . . . . . . . . 3 . . . 1 . . 1 . . . . . . . . . . . . . . . 1 . . . Data Loss (minor) 32 | . . 1 . . . . . . 5 4 . 2 3 . 1 . . 3 . . . . 1 2 3 . . . . . 2 5 . . . Data Loss (major) 15 | . . . . . . . . . 3 2 . 2 2 . 1 . 1 . . . . . . . . . . . . . 3 1 . . . Misfires 15 | . 1 . . . . . . . 1 . 1 . . . 1 . 1 1 . . . . . 1 2 . . . 1 . 1 4 . . . Alerts 5 | . . . . . . . . . . . . . . . . . 1 . . . . 2 1 . . . . . . . . 1 . . . Misdirections 5 | . . . . . . . . . 5 . . . . . . . . . . . . . . . . . . . . . . . . . . Weapon Failures 24 | . . . . . . . . . 12 . . 4 2 . . . 2 1 . . . . 1 1 . . . . . . 1 . . . . Overload Shots 1 | . . . . . . . . . . . . 1 . . . . . . . . . . . . . . . . . . . . . . . Overflow Damage 3374 | . 86 1 . . 7 . . 34 19 . . . 56 18 . 417 15 47 . . . . 429 40 . . 71 324 407 . 142 389 111 522 239 Projectiles 1714 | . . . . . . . . . . . . . 50 18 . . . 25 . . . . . 40 . . 71 324 390 . 122 276 111 98 189 Explosions 639 | . 22 1 . . 7 . . . 19 . . . 6 . . . 15 6 . . . . 71 . . . . . 17 . 20 73 . 332 50 Melee 1021 | . 64 . . . . . . 34 . . . . . . . 417 . 16 . . . . 358 . . . . . . . . 40 . 92 . Knockbacks 8 | . 1 . . . . . . . . . . . 1 . . . . 1 . . . . . . . . . . . . . . . 5 . Impact 7 | . 1 . . . . . . . . . . . 1 . . . . 1 . . . . . . . . . . . . . . . 4 . Kinetic . | . . . . . . . . . . . . . . . . . . . . . . . . . . . . . . . . . . . . Secondary 1 | . . . . . . . . . . . . . . . . . . . . . . . . . . . . . . . . . . 1 . Self-Inflicted Damage 887 | . 168 . . . . . . . 51 . . . . . . . 320 25 . . . . . 4 . . . . 132 . 47 . . 42 98 Shots 19 | . 2 . . . . . . . 2 . . . . . . . 7 1 . . . . . 1 . . . . 2 . 1 . . 1 2 Rammed 12 | . . . . . . . 1 1 . . . . 8 . . . 2 . . . . . . . . . . . . . . . . . . Targets Rammed 35 | . . . . . . . 1 2 . . . . 8 . . . 3 6 . . . . 1 . . 1 . 3 4 . . . . 6 . Kicked 22 | . . . . . . . . . . . . . . . . . 1 6 . . . . 1 . . 1 . 3 4 . . . . 6 . Crushed 1 | . . . . . . . . 1 . . . . . . . . . . . . . . . . . . . . . . . . . . . Highest Temperature 419 | . 89 260 151 78 234 42 290 46 259 221 . 225 155 136 119 178 173 230 418 100 . 187 419 281 150 . . 120 . . 179 165 44 138 118 Average Temperature 82 | . 25 42 56 29 69 22 110 20 69 110 . 108 77 71 84 117 37 73 141 52 . 70 105 84 51 . . 40 . . 97 83 25 64 92 Received Heat Transfer 3187 | . 420 . 78 . 18 . 126 72 519 . . 75 105 309 . 6 433 150 117 . . 5 178 . . 65 4 33 76 12 57 159 4 131 35 Effects 5 | . . . . . . . 2 . . . . . . . . . . . 1 . . . 2 . . . . . . . . . . . . Shutdowns 2 | . . . . . . . . . . . . . . . . . . . 1 . . . 1 . . . . . . . . . . . . Interference 2 | . . . . . . . 2 . . . . . . . . . . . . . . . . . . . . . . . . . . . . Matter Decay 1 | . . . . . . . . . . . . . . . . . . . . . . . 1 . . . . . . . . . . . . Siege Activations 22 | . . . . . . . . . . . . 3 4 6 1 . 8 . . . . . . . . . . . . . . . . . . Total Turns 722 | . . . . . . . . . . . . 36 69 398 7 . 212 . . . . . . . . . . . . . . . . . . Longest Duration 187 | . . . . . . . . . . . . 24 26 187 7 . 127 . . . . . . . . . . . . . . . . . . Robots Corrupted 90 | . . . . . . . . . 2 . . . . . . . 2 . . . . . . . 1 . 2 3 18 5 6 22 15 14 . Combat Hostiles 78 | . . . . . . . . . 1 . . . . . . . 1 . . . . . . . 1 . 2 2 15 4 6 20 13 13 . Parts Fried 185 | . 9 . . . . . . . 2 . . . . . . . 5 . . . . . . 2 1 . 2 6 38 9 16 29 27 39 . Impact Corruptions 9 | . 3 . . . . . . . . . . . . . . . . 1 . . . . . . . . . . . . . . . 5 . Robots Melted 4 | . . . . . . . . . . . . . 1 1 . . . . . . . . . . . . . 1 . . . 1 . . . Combat Hostiles 3 | . . . . . . . . . . . . . 1 . . . . . . . . . . . . . . 1 . . . 1 . . . Parts Melted 29 | . . . . . . . . 1 2 . . . 7 . . . . . . . . . . 3 . . . 2 4 . 6 3 . . 1 Heat Transferred 13779 | . 100 . . 70 120 . . . 555 . . . 1900 600 . . 50 300 . . . . 100 296 37 . . 111 1433 . 3786 950 . 1016 2355 Parts Sabotaged 4 | . . . . . . . . . . . . . . 2 . . . . . . . . . . . . . . . . . . . 2 . Parts Stolen . | . . . . . . . . . . . . . . . . . . . . . . . . . . . . . . . . . . . . Parts Stripped . | . . . . . . . . . . . . . . . . . . . . . . . . . . . . . . . . . . . . Power Chain Reactions 3 | . . . . . . . . . . . . . . . . . 2 . . . . . . . . . . . 1 . . . . . . Missiles Intercepted 6 | . . . . . . . . . . . . . . . . . . . . . . . . . . . . . . . . . . 6 . Alert | -11 -10 -10 -9 -9 -9 -8 -8 -8 -7 -7 -7 -7 -6 -6 -6 -6 -6 -5 -5 -5 -5 -4 -4 -4 -4 -4 -3 -3 -3 -2 -2 -2 -1 -1 -1 ------- Run | Scr Mat Min Mat Min Exi Min Mat Sto Fac Was Fac DSF Fac Ext Cet Arc Hub Fac Upp Upp Zhi Pro Fac Upp Upp War Pro Res Tes Res Qua Sec Acc Com Ac0 Peak Influence 2055 | 10 379 231 356 201 . 5 278 593 1028 359 111 350 493 474 785 495 2055 1544 . . . . 1275 . . . . 164 784 441 506 598 819 2033 . Initial 1006 | . 6 125 11 138 . . . 117 150 359 111 77 183 241 218 314 . 1006 . . . . 2 . . . . . . 441 117 284 264 524 . Average 342 | 3 170 176 113 88 . 2 127 372 481 357 111 265 119 328 546 83 874 1120 . . . . 406 . . . . 59 308 271 246 359 624 1169 . Maximum Alert Level 5 | . 1 1 1 1 . . 1 2 3 1 . 1 2 2 3 2 5 4 . . . . 4 . . . . . 3 2 2 2 3 5 . Low Security (%) 38 | 100 44 42 78 95 . 100 66 11 11 . 100 33 81 7 . 82 5 . . . . . 46 . . . . 100 37 17 41 14 . . . Level 1 24 | . 55 57 21 4 . . 33 55 34 99 . 66 16 78 40 9 4 . . . . . 12 . . . . . 27 74 40 40 14 . . Level 2 12 | . . . . . . . . 32 29 . . . 1 14 26 8 42 . . . . . 13 . . . . . 30 7 17 45 47 3 . Level 3 7 | . . . . . . . . . 24 . . . . . 32 . 12 48 . . . . 18 . . . . . 4 . . . 37 12 . Level 4 3 | . . . . . . . . . . . . . . . . . 15 51 . . . . 8 . . . . . . . . . . 3 . Level 5 12 | . . . . . . . . . . . . . . . . . 18 . . . . . . . . . . . . . . . . 74 . High Security . | . . . . . . . . . . . . . . . . . . . . . . . . . . . . . . . . . . 5 . Max Security . | . . . . . . . . . . . . . . . . . . . . . . . . . . . . . . . . . . . . Sterilizations 1 | . . . . . . . . . . . . 1 . . . . . . . . . . . . . . . . . . . . . . . Squads Dispatched 114 | . 1 . 2 . . . 3 4 15 . . 1 5 3 . . 14 7 . . . . 10 . . . . 4 7 . 9 5 6 18 . Investigation 15 | . 1 . . . . . 1 1 2 . . . 2 1 . . 1 . . . . . 1 . . . . 1 . . . . 1 3 . Extermination 29 | . . . . . . . . . 3 . . . 2 . . . 2 2 . . . . 4 . . . . . 2 . 7 4 . 3 . Reinforcement 40 | . . . 2 . . . 2 3 7 . . 1 1 1 . . 4 2 . . . . 2 . . . . 3 3 . 2 1 4 2 . Assault 26 | . . . . . . . . . 1 . . . . 1 . . 7 3 . . . . 2 . . . . . 2 . . . . 10 . Garrison 4 | . . . . . . . . . 2 . . . . . . . . . . . . . 1 . . . . . . . . . 1 . . Intercept . | . . . . . . . . . . . . . . . . . . . . . . . . . . . . . . . . . . . . Searches Triggered . | . . . . . . . . . . . . . . . . . . . . . . . . . . . . . . . . . . . . Construction Impeded 5 | . . . 1 . . . . . 1 . . . . . . . 1 . . . . . 1 . . . . . 1 . . . . . . Haulers Reinforced 7 | . . . . . . . . . 1 . . . . . . . 2 1 . . . . 1 . . . . . 1 . . . 1 . . Active Scanning Responses . | . . . . . . . . . . . . . . . . . . . . . . . . . . . . . . . . . . . . Cargo Convoy Interrupts 1 | . . . . . . . . . 1 . . . . . . . . . . . . . . . . . . . . . . . . . . Stealth | -11 -10 -10 -9 -9 -9 -8 -8 -8 -7 -7 -7 -7 -6 -6 -6 -6 -6 -5 -5 -5 -5 -4 -4 -4 -4 -4 -3 -3 -3 -2 -2 -2 -1 -1 -1 --------- Run | Scr Mat Min Mat Min Exi Min Mat Sto Fac Was Fac DSF Fac Ext Cet Arc Hub Fac Upp Upp Zhi Pro Fac Upp Upp War Pro Res Tes Res Qua Sec Acc Com Ac0 Distress Signals 52 | . . . 2 . . . 2 1 . . . . 2 1 2 . . . . . . . 3 . . . . 6 3 4 3 5 1 17 . Communications Jammed 21 | . . . . . . . . . . . . . . . . . . . . . . . . . . . . . . . . 5 . 16 . Distress Signals 20 | . . . . . . . . . . . . . . . . . . . . . . . . . . . . . . . . 5 . 15 . Times Spotted 834 | . 18 3 11 5 31 . 29 21 67 . . 10 30 40 10 7 58 48 5 . . 6 53 8 1 13 5 13 45 22 51 54 24 114 32 Peak Tracking Total 17 | . 5 3 5 2 9 . 4 4 10 . . 3 7 6 5 2 17 6 5 1 . 4 7 4 1 13 2 4 11 6 6 6 7 14 7 Tactical Retreats 70 | . 3 . 1 . 9 . 1 . 7 . . . 2 8 . . 6 1 . . . . 6 1 . . 1 1 1 5 6 2 5 4 . Traps | -11 -10 -10 -9 -9 -9 -8 -8 -8 -7 -7 -7 -7 -6 -6 -6 -6 -6 -5 -5 -5 -5 -4 -4 -4 -4 -4 -3 -3 -3 -2 -2 -2 -1 -1 -1 ------- Run | Scr Mat Min Mat Min Exi Min Mat Sto Fac Was Fac DSF Fac Ext Cet Arc Hub Fac Upp Upp Zhi Pro Fac Upp Upp War Pro Res Tes Res Qua Sec Acc Com Ac0 Traps Triggered 30 | . 3 . . . . . 3 . 8 . . 2 2 1 . . 1 . . . . . 3 . . . . . 2 . . 2 . 3 . Indirectly 5 | . . . . . . . . . 3 . . . . . . . . . . . . . 2 . . . . . . . . . . . . Trap Hack Attempts . | . . . . . . . . . . . . . . . . . . . . . . . . . . . . . . . . . . . . Triggered . | . . . . . . . . . . . . . . . . . . . . . . . . . . . . . . . . . . . . Disarmed . | . . . . . . . . . . . . . . . . . . . . . . . . . . . . . . . . . . . . Reprogrammed . | . . . . . . . . . . . . . . . . . . . . . . . . . . . . . . . . . . . . Reused . | . . . . . . . . . . . . . . . . . . . . . . . . . . . . . . . . . . . . Traps Extracted . | . . . . . . . . . . . . . . . . . . . . . . . . . . . . . . . . . . . . Installed . | . . . . . . . . . . . . . . . . . . . . . . . . . . . . . . . . . . . . Triggered 16 | . . . . . . . . . 2 . . . . . . . . . . . . . . . . 14 . . . . . . . . . Exploded 3 | . . . . . 3 . . . . . . . . . . . . . . . . . . . . . . . . . . . . . . Machines | -11 -10 -10 -9 -9 -9 -8 -8 -8 -7 -7 -7 -7 -6 -6 -6 -6 -6 -5 -5 -5 -5 -4 -4 -4 -4 -4 -3 -3 -3 -2 -2 -2 -1 -1 -1 ---------- Run | Scr Mat Min Mat Min Exi Min Mat Sto Fac Was Fac DSF Fac Ext Cet Arc Hub Fac Upp Upp Zhi Pro Fac Upp Upp War Pro Res Tes Res Qua Sec Acc Com Ac0 Machines Disabled 122 | . 4 1 . . 7 . 1 4 6 . . 1 6 2 2 2 23 8 . . . . 17 . . . . 1 7 . 9 14 . 6 1 Max in Single Turn 13 | . 4 1 . . 1 . 1 1 3 . . 1 1 1 1 1 13 4 . . . . 7 . . . . 1 2 . 3 1 . 2 1 Garrison Access 10 | . . . . . . . 1 1 . . . . 1 . . . 1 1 . . . . . . . . . 2 . 1 . 1 1 . . Network Hub 2 | . . . . . . . . . . . . . . . . . 2 . . . . . . . . . . . . . . . . . . Machines Sabotaged . | . . . . . . . . . . . . . . . . . . . . . . . . . . . . . . . . . . . . Garrisons Compromised 1 | . . . . . . . . . 1 . . . . . . . . . . . . . . . . . . . . . . . . . . Overloaded Fab Kills . | . . . . . . . . . . . . . . . . . . . . . . . . . . . . . . . . . . . . Hacking | -11 -10 -10 -9 -9 -9 -8 -8 -8 -7 -7 -7 -7 -6 -6 -6 -6 -6 -5 -5 -5 -5 -4 -4 -4 -4 -4 -3 -3 -3 -2 -2 -2 -1 -1 -1 --------- Run | Scr Mat Min Mat Min Exi Min Mat Sto Fac Was Fac DSF Fac Ext Cet Arc Hub Fac Upp Upp Zhi Pro Fac Upp Upp War Pro Res Tes Res Qua Sec Acc Com Ac0 Machines Accessed 177 | . 7 1 2 . 2 . 12 12 6 . 1 . 15 16 1 . 5 5 . . 4 . 11 . 1 4 1 11 5 3 11 22 6 13 . Terminals 124 | . 7 . 2 . . . 7 10 3 . 1 . 8 15 1 . 5 1 . . . . 7 . 1 . 1 5 4 2 10 18 4 12 . Fabricators 3 | . . . . . . . . . 1 . . . . . . . . . . . . . 1 . . . . . . . . . 1 . . Repair Stations 23 | . . . . . . . 2 1 . . . . 5 1 . . . 3 . . . . 3 . . . . 4 1 . 1 1 . 1 . Recycling Units 1 | . . . . . . . . . 1 . . . . . . . . . . . . . . . . . . . . . . . . . . Scanalyzers 6 | . . . . . . . 2 . 1 . . . 1 . . . . . . . . . . . . . . . . . . 2 . . . Garrison Access 9 | . . . . . . . 1 1 . . . . 1 . . . . 1 . . . . . . . . . 2 . 1 . 1 1 . . Total Hacks 615 | . 18 1 8 . 2 . 45 38 15 . 1 . 46 37 1 . 11 38 . . 17 . 62 . 1 10 1 40 19 16 56 74 14 44 . Successful 342 | . 8 1 6 . 2 . 27 30 4 . 1 . 25 23 . . 5 17 . . 17 . 32 . 1 10 1 15 6 3 38 47 8 15 . Failed 271 | . 9 . 2 . . . 18 7 11 . . . 21 14 1 . 6 21 . . . . 30 . . . . 25 13 13 18 27 6 29 . Catastrophic 41 | . . . . . . . . . 3 . . . 5 3 1 . 2 3 . . . . 6 . . . . 6 1 3 1 3 . 4 . Database Lockouts 2 | . 1 . . . . . . 1 . . . . . . . . . . . . . . . . . . . . . . . . . . . Manual 199 | . 17 . 8 . 1 . 16 10 2 . . . 9 11 1 . 5 . . . . . 33 . . . . 5 4 . 19 37 2 19 . Terminals 407 | . 18 . 8 . . . 24 24 7 . 1 . 21 33 1 . 11 7 . . . . 46 . 1 . 1 22 13 10 44 67 9 39 . Fabricators 7 | . . . . . . . . . 2 . . . . . . . . . . . . . 2 . . . . . . . . . 3 . . Repair Stations 133 | . . . . . . . 13 13 . . . . 19 4 . . . 28 . . . . 14 . . . . 15 6 . 12 4 . 5 . Recycling Units 1 | . . . . . . . . . 1 . . . . . . . . . . . . . . . . . . . . . . . . . . Scanalyzers 19 | . . . . . . . 7 . 5 . . . 5 . . . . . . . . . . . . . . . . . . 2 . . . Garrison Access 18 | . . . . . . . 1 1 . . . . 1 . . . . 3 . . . . . . . . . 3 . 6 . 1 2 . . Terminal Hacks 185 | . 3 1 3 . 2 . 12 14 1 . 1 . 7 17 . . 4 4 . . 17 . 14 . 1 10 1 4 2 2 20 29 5 11 . Record 17 | . . . . . 1 . . . . . . . . . . . . . . . 5 . . . 1 8 1 . . . 1 . . . . Part Schematic 8 | . . . 1 . . . 1 . . . . . . 1 . . . . . . 4 . 1 . . . . . . . . . . . . Robot Analysis 14 | . 1 . 1 . . . 2 1 . . . . . 1 . . . . . . 4 . 2 . . . . . . . . . . 2 . Prototype ID Bank 28 | . 1 . . . . . 3 3 . . . . 1 3 . . . . . . 4 . 2 . . . . . . . 5 6 . . . Open Door 26 | . . 1 . . . . . 5 . . . . 1 8 . . . . . . . . . . . 2 . . 1 . 1 4 3 . . Open DSF 1 | . . . . . . . . . . . 1 . . . . . . . . . . . . . . . . . . . . . . . . Branch Access Points 5 | . . . . . . . 1 . . . . . 1 . . . . . . . . . 1 . . . . 1 . . . . 1 . . Emergency Access Points 2 | . . . . . . . . . . . . . . . . . . . . . . . . . . . . 1 . . 1 . . . . Machine Index 6 | . . . . . . . . 1 . . . . . . . . . . . . . . 1 . . . . . 1 . 1 1 . 1 . Terminal Index 7 | . 1 . 1 . . . 1 . . . . . 1 . . . 1 . . . . . . . . . . . . . 1 . . 1 . Repair Station Index 4 | . . . . . . . 1 . . . . . 1 1 . . . . . . . . 1 . . . . . . . . . . . . Garrison Index 1 | . . . . . . . . . . . . . . . . . 1 . . . . . . . . . . . . . . . . . . Alert Level 15 | . . . . . . . . 1 . . . . 1 . . . . 1 . . . . . . . . . 1 . 1 2 6 . 2 . Unreport Threat 16 | . . . . . . . . . . . . . . 1 . . 2 2 . . . . . . . . . . . 1 4 6 . . . Locate Traps 20 | . . . . . . . 2 3 1 . . . . 1 . . . 1 . . . . 2 . . . . 1 . . 3 3 1 2 . Security Status 1 | . . . . . . . . . . . . . . . . . . . . . . . . . . . . . . . . . . 1 . Patrol Status 1 | . . . . . . . . . . . . . . . . . . . . . . . . . . . . . . . . . . 1 . Transport Status 2 | . . . . . . . . . . . . . . . . . . . . . . . 2 . . . . . . . . . . . . Hauler Manifests 6 | . . . . . . . 1 . . . . . 1 1 . . . . . . . . 2 . . . . . . . . 1 . . . Zone Layout 3 | . . . . . . . . . . . . . . . . . . . . . . . . . . . . . . . 1 2 . . . EX-Prototype ID Bank 1 | . . . . . 1 . . . . . . . . . . . . . . . . . . . . . . . . . . . . . . Disengage Seal 1 | . . . . . . . . . . . . . . . . . . . . . . . . . . . . . . . . . . 1 . Fabricator Hacks 4 | . . . . . . . . . . . . . . . . . . . . . . . 2 . . . . . . . . . 2 . . Load Schematic 2 | . . . . . . . . . . . . . . . . . . . . . . . 1 . . . . . . . . . 1 . . Build 2 | . . . . . . . . . . . . . . . . . . . . . . . 1 . . . . . . . . . 1 . . Repair Station Hacks 83 | . . . . . . . 8 12 . . . . 14 4 . . . 12 . . . . 10 . . . . 8 1 . 10 2 . 2 . Scan Component 48 | . . . . . . . 5 6 . . . . 8 2 . . . 8 . . . . 6 . . . . 5 1 . 5 1 . 1 . Repair 35 | . . . . . . . 3 6 . . . . 6 2 . . . 4 . . . . 4 . . . . 3 . . 5 1 . 1 . Recycling Unit Hacks 1 | . . . . . . . . . 1 . . . . . . . . . . . . . . . . . . . . . . . . . . Report Inventory 1 | . . . . . . . . . 1 . . . . . . . . . . . . . . . . . . . . . . . . . . Scanalyzer 11 | . . . . . . . 4 . 2 . . . 3 . . . . . . . . . . . . . . . . . . 2 . . . Insert Component 9 | . . . . . . . 3 . 2 . . . 2 . . . . . . . . . . . . . . . . . . 2 . . . Analyze 2 | . . . . . . . 1 . . . . . 1 . . . . . . . . . . . . . . . . . . . . . . Garrison Access Hacks 9 | . . . . . . . 1 1 . . . . 1 . . . . 1 . . . . . . . . . 2 . 1 . 1 1 . . Seal Access 9 | . . . . . . . 1 1 . . . . 1 . . . . 1 . . . . . . . . . 2 . 1 . 1 1 . . Unauthorized Hacks 49 | . 5 . 3 . . . 2 3 . . . . . 2 . . 1 . . . . . 6 . . . . 1 3 . 8 13 . 2 . Terminals 49 | . 5 . 3 . . . 2 3 . . . . . 2 . . 1 . . . . . 6 . . . . 1 3 . 8 13 . 2 . Track 8 | . . . . . . . . . . . . . . . . . . . . . . . . . . . . . . . 2 5 . 1 . Assimilate 7 | . 2 . 1 . . . . . . . . . . . . . . . . . . . 2 . . . . . 2 . . . . . . Botnet 25 | . 2 . 1 . . . 1 2 . . . . . 2 . . 1 . . . . . 4 . . . . 1 1 . 4 5 . 1 . Disrupt 1 | . . . . . . . . . . . . . . . . . . . . . . . . . . . . . . . . 1 . . . Operators 8 | . 1 . 1 . . . 1 1 . . . . . . . . . . . . . . . . . . . . . . 2 2 . . . Fabricators . | . . . . . . . . . . . . . . . . . . . . . . . . . . . . . . . . . . . . Repair Stations . | . . . . . . . . . . . . . . . . . . . . . . . . . . . . . . . . . . . . Recycling Units . | . . . . . . . . . . . . . . . . . . . . . . . . . . . . . . . . . . . . Scanalyzers . | . . . . . . . . . . . . . . . . . . . . . . . . . . . . . . . . . . . . Garrison Access . | . . . . . . . . . . . . . . . . . . . . . . . . . . . . . . . . . . . . Data Cores Recovered 2 | . . . . . . . . . . . . . . . . . . . . . . . . . . . . 1 . . 1 . . . . Used 2 | . . . . . . . . . . . . . . . . . . . . . . . . . . . . 1 . . 1 . . . . Hacking Detections 125 | . 4 . 2 . . . 11 4 5 . . . 13 11 2 . 5 3 . . . . 11 . 1 . 1 10 4 3 9 13 2 11 . Full Trace Events 10 | . . . . . . . 2 . 2 . . . 2 . . . 1 . . . . . 1 . . . . . . . . . 1 1 . Feedback Events . | . . . . . . . . . . . . . . . . . . . . . . . . . . . . . . . . . . . . Feedback Blocked . | . . . . . . . . . . . . . . . . . . . . . . . . . . . . . . . . . . . . Robot Schematics Acquired . | . . . . . . . . . . . . . . . . . . . . . . . . . . . . . . . . . . . . Robots Built . | . . . . . . . . . . . . . . . . . . . . . . . . . . . . . . . . . . . . Authchips . | . . . . . . . . . . . . . . . . . . . . . . . . . . . . . . . . . . . . Time . | . . . . . . . . . . . . . . . . . . . . . . . . . . . . . . . . . . . . Total Robot Build Rating . | . . . . . . . . . . . . . . . . . . . . . . . . . . . . . . . . . . . . Part Schematics Acquired 9 | . . . 1 . . . 2 . . . . . . 1 . . . . . . 4 . 1 . . . . . . . . . . . . Parts Built 2 | . . . . . . . . . . . . . . . . . . . . . . . 1 . . . . . . . . . 1 . . Authchips . | . . . . . . . . . . . . . . . . . . . . . . . . . . . . . . . . . . . . Time 126 | . . . . . . . . . . . . . . . . . . . . . . . 76 . . . . . . . . . 50 . . Total Part Build Rating 10 | . . . . . . . . . . . . . . . . . . . . . . . 5 . . . . . . . . . 5 . . Parts Repaired 35 | . . . . . . . 3 6 . . . . 6 2 . . . 4 . . . . 4 . . . . 3 . . 5 1 . 1 . Time 2461 | . . . . . . . 344 335 . . . . 387 120 . . . 301 . . . . 292 . . . . 127 . . 503 26 . 26 . Parts Recycled . | . . . . . . . . . . . . . . . . . . . . . . . . . . . . . . . . . . . . Recycled Matter . | . . . . . . . . . . . . . . . . . . . . . . . . . . . . . . . . . . . . Retrieved Matter . | . . . . . . . . . . . . . . . . . . . . . . . . . . . . . . . . . . . . Retrieved Components . | . . . . . . . . . . . . . . . . . . . . . . . . . . . . . . . . . . . . Parts Scanalyzed 3 | . . . . . . . 2 . 1 . . . . . . . . . . . . . . . . . . . . . . . . . . Part Schematics Acquired 1 | . . . . . . . 1 . . . . . . . . . . . . . . . . . . . . . . . . . . . . Parts Damaged 1 | . . . . . . . 1 . . . . . . . . . . . . . . . . . . . . . . . . . . . . Bothacking | -11 -10 -10 -9 -9 -9 -8 -8 -8 -7 -7 -7 -7 -6 -6 -6 -6 -6 -5 -5 -5 -5 -4 -4 -4 -4 -4 -3 -3 -3 -2 -2 -2 -1 -1 -1 ------------ Run | Scr Mat Min Mat Min Exi Min Mat Sto Fac Was Fac DSF Fac Ext Cet Arc Hub Fac Upp Upp Zhi Pro Fac Upp Upp War Pro Res Tes Res Qua Sec Acc Com Ac0 Used RIF Installer . | . . . . . . . . . . . . . . . . . . . . . . . . . . . . . . . . . . . . Robots Hacked 1 | . . . . . . . . . . . . . . . . . . . . . . . . . . . . . . . . . . 1 . Non-combat . | . . . . . . . . . . . . . . . . . . . . . . . . . . . . . . . . . . . . Combat . | . . . . . . . . . . . . . . . . . . . . . . . . . . . . . . . . . . . . Robot Hacks Applied . | . . . . . . . . . . . . . . . . . . . . . . . . . . . . . . . . . . . . Manual 1 | . . . . . . . . . . . . . . . . . . . . . . . . . . . . . . . . . . 1 . Relay Couplers Released 10 | . . . . . . . . . . . . . . . . . 2 . . . . . . . . . . 3 . . . 2 3 . . Machine Destruction 7 | . . . . . . . . . . . . . . . . . 2 . . . . . . . . . . . . . . 2 3 . . Programmers 3 | . . . . . . . . . . . . . . . . . . . . . . . . . . . . 3 . . . . . . . Fabnet Peak Effective % . | . . . . . . . . . . . . . . . . . . . . . . . . . . . . . . . . . . . . Robots Rewired 12 | . . . . . . . . . . . . . . 10 . . . . . . . . . . . 2 . . . . . . . . . Allies Hacked . | . . . . . . . . . . . . . . . . . . . . . . . . . . . . . . . . . . . . Hacks Repelled . | . . . . . . . . . . . . . . . . . . . . . . . . . . . . . . . . . . . . Allies | -11 -10 -10 -9 -9 -9 -8 -8 -8 -7 -7 -7 -7 -6 -6 -6 -6 -6 -5 -5 -5 -5 -4 -4 -4 -4 -4 -3 -3 -3 -2 -2 -2 -1 -1 -1 -------- Run | Scr Mat Min Mat Min Exi Min Mat Sto Fac Was Fac DSF Fac Ext Cet Arc Hub Fac Upp Upp Zhi Pro Fac Upp Upp War Pro Res Tes Res Qua Sec Acc Com Ac0 Total Allies 46 | . 1 1 . 5 . . . 10 . . . . . 20 5 . . . . . . . 1 . . 2 . . 1 . . . . . . Largest Group 11 | . 1 2 2 4 2 . . 10 . . . . . 8 11 10 6 . . . . . 1 . . 2 . . 1 . . . . . . Highest-Rated Group 735 | . 10 41 41 50 41 . . 173 . . . . . 346 735 707 429 . . . . . 10 . . 105 . . 26 . . . . . . Highest-Rated Ally 159 | . 10 31 31 31 31 . . 29 . . . . . 159 159 137 96 . . . . . 10 . . 56 . . 26 . . . . . . Total Orders 28 | . . . 6 2 10 . . . . . . . . . . 1 1 . . . . . 8 . . . . . . . . . . . . STAY 10 | . . . 3 1 . . . . . . . . . . . 1 1 . . . . . 4 . . . . . . . . . . . . FOLLOW 8 | . . . 3 1 . . . . . . . . . . . . . . . . . . 4 . . . . . . . . . . . . RETURN 10 | . . . . . 10 . . . . . . . . . . . . . . . . . . . . . . . . . . . . . . Ally Attacks 610 | . . . 2 37 220 . . 106 . . . . . 81 69 16 78 . . . . . . . . 1 . . . . . . . . . Total Damage 10524 | . . . 21 503 1064 . . 1337 . . . . . 1600 2106 516 3377 . . . . . . . . . . . . . . . . . . Kills 69 | . . . 1 2 10 . . 16 . . . . . 9 12 3 16 . . . . . . . . . . . . . . . . . . Allies Corrupted 2 | . . . . . . . . . . . . . . . . . 2 . . . . . . . . . . . . . . . . . . Allies Melted 3 | . . . . . . . . . . . . . . 2 . . . . . . . . . . . . . . . 1 . . . . . Intel | -11 -10 -10 -9 -9 -9 -8 -8 -8 -7 -7 -7 -7 -6 -6 -6 -6 -6 -5 -5 -5 -5 -4 -4 -4 -4 -4 -3 -3 -3 -2 -2 -2 -1 -1 -1 ------- Run | Scr Mat Min Mat Min Exi Min Mat Sto Fac Was Fac DSF Fac Ext Cet Arc Hub Fac Upp Upp Zhi Pro Fac Upp Upp War Pro Res Tes Res Qua Sec Acc Com Ac0 Robot Analysis Total 14 | . 1 . 1 . . . 2 1 . . . . . 1 . . . . . . 4 . 2 . . . . . . . . . . 2 . Derelict Logs Recovered 8 | . . . . 1 . . . . . . . . . . . . . . . 3 . 1 . 2 1 . . . . . . . . . . Drone Launches 52 | . . . . . 24 . . 14 11 . . . . . . . 3 . . . . . . . . . . . . . . . . . . Drone Recoveries 35 | . . . . . 22 . . . 11 . . . . . . . 2 . . . . . . . . . . . . . . . . . . Exploration | -11 -10 -10 -9 -9 -9 -8 -8 -8 -7 -7 -7 -7 -6 -6 -6 -6 -6 -5 -5 -5 -5 -4 -4 -4 -4 -4 -3 -3 -3 -2 -2 -2 -1 -1 -1 ------------- Run | Scr Mat Min Mat Min Exi Min Mat Sto Fac Was Fac DSF Fac Ext Cet Arc Hub Fac Upp Upp Zhi Pro Fac Upp Upp War Pro Res Tes Res Qua Sec Acc Com Ac0 Turns Passed 45303 | 72 1157 435 338 650 2098 416 2156 1466 1511 403 80 403 2598 1606 394 4656 1089 1418 767 704 271 539 2156 441 456 716 567 1219 1120 1149 2653 2178 634 6186 601 Spaces Moved 26117 | 56 710 351 162 440 1157 315 973 531 989 252 51 187 1214 539 193 542 437 989 675 693 252 477 1229 357 423 565 375 936 697 1115 1753 1754 500 3903 325 Core 221 | 7 . . . . . . . . . . . . . . . 214 . . . . . . . . . . . . . . . . . . . Treads 4055 | . . . . . . . 378 531 25 214 51 187 1214 539 193 328 395 . . . . . . . . . . . . . . . . . . Legs 18349 | . . . . . 382 315 595 . . . . . . . . . 42 989 675 693 252 477 1229 357 423 565 375 936 697 1115 1753 1754 500 3900 325 Wheels 3489 | 49 710 351 162 440 775 . . . 964 38 . . . . . . . . . . . . . . . . . . . . . . . . . Hover . | . . . . . . . . . . . . . . . . . . . . . . . . . . . . . . . . . . . . Flight . | . . . . . . . . . . . . . . . . . . . . . . . . . . . . . . . . . . . . Fastest Speed 50 | 50 80 105 105 105 105 130 120 153 115 115 160 160 160 160 160 160 100 100 100 100 100 100 100 100 100 96 96 96 96 97 97 100 100 100 102 Average Speed 127 | 78 95 105 105 121 132 130 141 176 116 153 160 160 160 160 160 847 154 100 100 100 100 100 105 101 100 98 96 96 96 97 99 100 100 100 106 Slowest Speed 1900 | 100 105 105 105 140 145 130 250 241 163 240 160 160 240 160 160 1900 160 100 100 100 100 100 175 104 100 100 96 96 97 97 166 100 100 166 176 Overloaded Moves . | . . . . . . . . . . . . . . . . . . . . . . . . . . . . . . . . . . . . Propulsion Burnouts . | . . . . . . . . . . . . . . . . . . . . . . . . . . . . . . . . . . . . Robots Hopped 1 | . . . . . . . . . . . . . . 1 . . . . . . . . . . . . . . . . . . . . . Cave-ins Triggered 1 | . . . . . . . . . . . . . . . . . . . . . . . . . . . . . . . . . . 1 . Teleports 3 | . . . . . . . . . . . . . . . . . . . . . . . . . . . . . . . . 2 . 1 . Spacefolds 1 | . . . . . . . . . . . . . . . . . . . . . . . . . . . . . . . . . . 1 . Exploration Rate (%) 59 | 4 90 74 19 78 87 80 62 80 34 90 2 89 35 64 77 88 44 21 83 80 60 50 27 59 73 70 66 29 83 34 92 85 17 81 22 Regions Visited 35 Branch Regions 22 Pre-discovered Areas 7 | . . . . 1 1 . . . . . . . . . . . . . . 1 3 1 . . . . . . . . . . . . . Known Exits Taken 15 | . . . . . . . 1 . . . 1 . 1 . . . . 1 1 1 1 1 1 1 1 1 1 1 . . . . 1 . . Unknown Exits Taken 17 | 1 1 1 1 1 1 1 . 1 . . . . . 1 1 1 1 . . . . . . . . . . . 1 1 1 1 . 1 . Scrap Searched 12 | . . . . 1 . 1 . . . . . . . . . . . . 2 2 . 1 . 2 2 . 1 . . . . . . . . Spaces Dug 218 | . 57 . . . . . 8 9 31 . . 3 3 4 1 . 1 3 1 . . . 17 1 . 1 . 22 20 . 3 10 5 18 . Terrain Destroyed 1784 | . 57 7 20 . 34 1 16 9 159 . . 3 48 22 2 2 485 122 10 . . 4 129 75 2 1 4 33 83 . 62 26 7 152 209 Melee 30 | . 3 . . . . . 5 9 . . . 2 . . 1 . . . . . . . 9 . . 1 . . . . . . . . . Projectile 395 | . 2 . . . 6 1 10 . . . . 1 18 22 1 2 68 42 10 . . 1 34 22 2 . 4 33 33 . 13 20 6 29 15 AOE 1344 | . 52 7 20 . 26 . . . 159 . . . 30 . . . 416 80 . . . 2 86 53 . . . . 49 . 49 5 . 122 188 Terrain Rammed . | . . . . . . . . . . . . . . . . . . . . . . . . . . . . . . . . . . . . Walls Destroyed . | . . . . . . . . . . . . . . . . . . . . . . . . . . . . . . . . . . . . Machines Disabled . | . . . . . . . . . . . . . . . . . . . . . . . . . . . . . . . . . . . . Actions | -11 -10 -10 -9 -9 -9 -8 -8 -8 -7 -7 -7 -7 -6 -6 -6 -6 -6 -5 -5 -5 -5 -4 -4 -4 -4 -4 -3 -3 -3 -2 -2 -2 -1 -1 -1 --------- Run | Scr Mat Min Mat Min Exi Min Mat Sto Fac Was Fac DSF Fac Ext Cet Arc Hub Fac Upp Upp Zhi Pro Fac Upp Upp War Pro Res Tes Res Qua Sec Acc Com Ac0 Total 36209 | 71 1084 382 294 535 1666 317 1636 1008 1242 270 50 255 1768 1212 261 587 671 1283 748 702 272 514 1850 397 445 723 551 1203 1030 1184 2581 2154 634 6072 557 Wait 6756 | . 283 . 103 79 405 1 473 375 53 . . 18 419 538 17 6 66 176 37 5 . 13 393 1 11 104 142 183 150 12 613 144 48 1864 24 Move 26080 | 55 709 350 161 439 1156 314 972 530 989 251 50 186 1213 536 192 541 437 988 674 692 251 476 1228 356 422 565 374 935 696 1114 1752 1753 499 3899 325 Hop 1 | . . . . . . . . . . . . . . 1 . . . . . . . . . . . . . . . . . . . . . Pick Up 280 | 4 12 2 3 1 14 . 12 8 14 3 . 4 7 3 4 5 11 10 4 1 5 2 23 2 1 7 2 4 12 9 21 18 5 23 24 Fast Attach 211 | 6 2 2 . . 1 . 17 14 15 4 . 3 10 3 11 9 6 1 4 . 4 2 3 2 . 9 . 5 11 6 16 22 . 15 8 Attach 184 | . 6 . 2 3 9 . 4 1 7 1 . 1 7 1 4 3 12 6 2 1 2 1 20 5 2 2 1 2 5 3 15 13 4 19 20 Detach 44 | . . 1 . . 1 . 4 3 3 . . . 1 1 1 . 4 1 . . . . . 1 . 1 . . 2 1 5 3 . 7 4 Swap 373 | . 10 5 4 3 24 . 26 17 21 2 . 3 13 10 1 1 21 26 5 . 2 6 36 2 2 3 7 13 20 7 17 25 4 30 7 Drop 396 | . 4 1 1 . 18 . 23 15 30 9 . 7 10 2 16 11 18 5 8 1 8 4 22 3 1 13 2 5 25 14 33 25 4 31 27 Fire 1590 | 6 31 21 20 10 38 2 99 20 94 . . 31 80 60 14 2 94 64 14 2 . 9 65 25 6 . 23 53 99 18 108 141 70 162 109 Melee 146 | . 27 . . . . . 5 16 . . . 2 . . 1 9 . . . . . 1 57 . . 1 . . 6 . 1 7 . 4 9 Ram . | . . . . . . . . . . . . . . . . . . . . . . . . . . . . . . . . . . . . Kick 20 | . . . . . . . . . . . . . . . . . . 6 . . . . 1 . . . . 3 4 . . . . 6 . Crush 13 | . . . . . . . 1 2 . . . . 8 . . . 2 . . . . . . . . . . . . . . . . . . Escape Stasis 31 | . . . . . . . . . 16 . . . . . . . . . . . . . . . . . . . . . . 3 . 12 . Rewire 77 | . . . . . . . . . . . . . . 57 . . . . . . . . 2 . . 18 . . . . . . . . . Trap . | . . . . . . . . . . . . . . . . . . . . . . . . . . . . . . . . . . . . Miscellaneous 7 | . . . . . . . . 7 . . . . . . . . . . . . . . . . . . . . . . . . . . . Route ------- -11/Scrapyard -10/Materials (discovered 4 exits: *Mat x3 / *Min) -10/Mines (discovered 2 exits: *Mat x2) -9/Materials (discovered 2 exits: [*Min x2]) -9/Mines (discovered 3 exits: *Mat x2 / *Exi) -9/Exiles -8/Mines -8/Materials (discovered 2 exits: *Fac / *Sto) -8/Storage -7/Factory (discovered 2 exits: *Fac x2) -7/Waste -7/Factory -7/DSF -6/Factory (discovered 5 exits: *Fac / *Low x2 / *Ext x2) -6/Extension (discovered 2 exits: *Fac / *Cet) -6/Cetus (discovered 2 exits: *Fac / [*Arc]) -6/Archives (discovered 2 exits: *Fac / *Hub) -6/Hub_04(d) (discovered 2 exits: *Fac x2) -5/Factory -5/Upper Caves -5/Upper Caves (discovered 2 exits: *Fac / *Zhi) -5/Zhirov -4/Proximity Caves -4/Factory (discovered 2 exits: *Upp x2) -4/Upper Caves -4/Upper Caves (discovered 2 exits: *Res / *War) -4/Warlord -3/Proximity Caves -3/Research (discovered 4 exits: *Res / Arm / *Tes x2) -3/Testing -2/Research (discovered 2 exits: *Acc / *Qua) -2/Quarantine (discovered 2 exits: *Acc / *Sec) -2/Section 7 -1/Access -1/Command (discovered 3 exits: [*Sur x2] / [*Ac0]) -1/Access_0 History --------- Turn | Location | Event 17 | -11/Scrapyard | Discovered new exit (range 15) 73 | -11/Scrapyard | Entered Materials 317 | -10/Materials | Build established: Mutant 409 | -10/Materials | Discovered new exit (range 4) 502 | -10/Materials | Central database locked down 593 | -10/Materials | Discovered new exit (range 9) 974 | -10/Materials | Lost 5 parts (1p2n1u1w) 977 | -10/Materials | Discovered new exit (range 10) 1157 | -10/Materials | Discovered new exit (range 7) 1230 | -10/Materials | Entered Mines 1230 | -10/Mines | Accompanied by 1 ally 1260 | -10/Mines | Discovered new exit (range 11) 1314 | -10/Mines | Found the Drone Emporium 1319 | -10/Mines | Found Prototype Device 1319 | -10/Mines | Identified Thief Drone Bay 1400 | -10/Mines | Core integrity fell below 50% 1479 | -10/Mines | Received a Mining Laser from a helpful Derelict 1554 | -10/Mines | Destroyed YI-UF0 1575 | -10/Mines | Found a damaged Exp. Sensor Array with a note attached 1577 | -10/Mines | Found Prototype Device 1578 | -10/Mines | Identified Exp. Sensor Array 1627 | -10/Mines | Discovered new exit (range 10) 1665 | -10/Mines | Entered Materials 1665 | -9/Materials | Accompanied by 2 allies 1665 | -9/Materials | Evolved 2 slots: Utility x1, Weapon x1 1872 | -9/Materials | Discovered new exit (range 14) 1961 | -9/Materials | Build established: Tank 1995 | -9/Materials | Discovered new exit (range 8) 2003 | -9/Materials | Entered Mines 2003 | -9/Mines | Accompanied by 1 ally 2063 | -9/Mines | Assisted by bots powering up and referring to "LRC-V3" 2194 | -9/Mines | Learned location of Storage (-8) 2237 | -9/Mines | Assembled infested the area 2251 | -9/Mines | Discovered new exit (range 12) 2288 | -9/Mines | Lost 5 parts (1n1u3w) 2372 | -9/Mines | Discovered new exit (range 9) 2540 | -9/Mines | Build established: Mutant 2609 | -9/Mines | Discovered new exit (range 5) 2653 | -9/Mines | Entered Exiles 2653 | -9/Exiles | Accompanied by 2 allies 2683 | -9/Exiles | Led the pair of lost Derelicts to a safe place 2693 | -9/Exiles | Met 8R-AWN 2715 | -9/Exiles | Met EX-HEX 2757 | -9/Exiles | Met EX-BIN 2837 | -9/Exiles | Met EX-DEC 2861 | -9/Exiles | Learned location of Zion (-6) 2910 | -9/Exiles | Discovered new exit (range 10) 3001 | -9/Exiles | Aligned with FarCom system 3002 | -9/Exiles | Given EX-Vault access code 3037 | -9/Exiles | Opened EX-Vault 3069 | -9/Exiles | Warned to stay clear of 0b10 Research branches 3369 | -9/Exiles | Attacked by the Exiles 3541 | -9/Exiles | Found 8R-AWN's Boregun 3542 | -9/Exiles | Found 8R-AWN's Boregun 3943 | -9/Exiles | Allies destroyed 8R-AWN 3968 | -9/Exiles | Found AS-neutralizer No. 17b 4288 | -9/Exiles | Allies destroyed EX-BIN 4321 | -9/Exiles | Allies destroyed EX-HEX 4328 | -9/Exiles | Allies destroyed EX-DEC 4751 | -9/Exiles | Entered Mines 4820 | -8/Mines | Discovered new exit (range 7) 4879 | -8/Mines | Build established: Tank 5167 | -8/Mines | Entered Materials 5167 | -8/Materials | Evolved 2 slots: Propulsion x1, Utility x1 5589 | -8/Materials | Repaired Exp. Sensor Array 5709 | -8/Materials | Repaired Broken Exp. Heat Sink? 6615 | -8/Materials | Identified exit to Storage 6956 | -8/Materials | Discovered new exit (range 16) 7108 | -8/Materials | Build established: Mutant 7113 | -8/Materials | Repaired Broken Adv. Myomer Leg 7323 | -8/Materials | Entered Storage 7371 | -8/Storage | Found Prototype Launcher 7372 | -8/Storage | Identified Scatter Rocket Array 7378 | -8/Storage | Found Scatter Rocket Array 7439 | -8/Storage | Central database locked down 7442 | -8/Storage | Assisted by bots powering up and referring to "LRC-V3" 8002 | -8/Storage | Repaired Enh. Autogun 8056 | -8/Storage | Repaired Lyr. Light Armor Plating 8103 | -8/Storage | Repaired Arm. Treads 8143 | -8/Storage | Repaired Arm. Treads 8200 | -8/Storage | Repaired Rnf. Fission Core 8301 | -8/Storage | Repaired Adv. Myomer Leg 8316 | -8/Storage | Build established: Tank 8769 | -8/Storage | Discovered new exit (range 4) 8789 | -8/Storage | Entered Factory 8789 | -7/Factory | Accompanied by 14 allies 8789 | -7/Factory | Evolved 2 slots: Propulsion x1, Utility x1 9064 | -7/Factory | Destroyed 9 combat bots 9455 | -7/Factory | Discovered new exit (range 11) 9552 | -7/Factory | Discovered new exit (range 15) 9601 | -7/Factory | Garrison activated, responded to threat 9632 | -7/Factory | Cargo convoy interrupted 9677 | -7/Factory | Destroyed 8 combat bots 9712 | -7/Factory | System corruption reached 10% 9729 | -7/Factory | Found Prototype Slashing Weapon 9731 | -7/Factory | Identified Centrium Greatsword 9989 | -7/Factory | First assault squad dispatched 10257 | -7/Factory | Garrison activated, responded to threat 10300 | -7/Factory | Sucked down chute 10300 | -7/Factory | Entered Waste 10300 | -7/Waste | The area was eerily silent 10358 | -7/Waste | Found Damper Plating 10562 | -7/Waste | Build established: Mutant 10602 | -7/Waste | Found Damper Plating 10605 | -7/Waste | Discovered new exit (range 13) 10703 | -7/Waste | Entered Factory 10782 | -7/Factory | Identified exit to DSF 10783 | -7/Factory | Entered DSF 10823 | -7/DSF | Additional patrols routed to DSF 10842 | -7/DSF | Discovered new exit (range 16) 11005 | -7/DSF | Sterilization system engaged 11025 | -7/DSF | Ambient heat levels rising (+10) 11040 | -7/DSF | Ambient heat levels rising (+10) 11055 | -7/DSF | Ambient heat levels rising (+10) 11070 | -7/DSF | Ambient heat levels rising (+10) 11073 | -7/DSF | Build established: Tank 11085 | -7/DSF | Ambient heat levels rising (+10) 11100 | -7/DSF | Ambient heat levels rising (+10) 11115 | -7/DSF | Ambient heat levels rising (+10) 11120 | -7/DSF | System corruption reached 30% 11130 | -7/DSF | Ambient heat levels rising (+10) 11145 | -7/DSF | Ambient heat levels rising (+10) 11160 | -7/DSF | Ambient heat levels rising (+10) 11175 | -7/DSF | Ambient heat levels rising (+10) 11186 | -7/DSF | Entered Factory 11186 | -6/Factory | Evolved 2 slots: Utility x2 11383 | -6/Factory | Build established: Mutant 12145 | -6/Factory | Build established: Tank 12238 | -6/Factory | Discovered new exit (range 15) 12622 | -6/Factory | Repaired Imp. Heavy Machine Gun 12723 | -6/Factory | Repaired Exp. Cooling System 12790 | -6/Factory | Identified exit to Lower Caves 12790 | -6/Factory | Identified exit to Extension 12889 | -6/Factory | Discovered new exit (range 9) 13130 | -6/Factory | Repaired Hvy. Treads 13211 | -6/Factory | Repaired Imp. Heavy Machine Gun 13255 | -6/Factory | Repaired Med. Reactive Plating 13337 | -6/Factory | Spotted B-75 Beast 13617 | -6/Factory | Repaired Hvy. Treads 13784 | -6/Factory | Entered Extension 13864 | -6/Extension | Rescued a captive Derelict 14109 | -6/Extension | Rescued a captive Derelict 14110 | -6/Extension | Rescued a captive Derelict 14302 | -6/Extension | Rescued a captive Derelict 14302 | -6/Extension | Rescued a captive Derelict 14331 | -6/Extension | Rescued a captive Derelict 14484 | -6/Extension | First assault squad dispatched 14869 | -6/Extension | Repaired Med. Reactive Plating 14946 | -6/Extension | Repaired Broken Adv. EMP Blaster 15172 | -6/Extension | Rescued a captive Derelict 15201 | -6/Extension | Rescued a captive Derelict 15311 | -6/Extension | Rescued A7 15327 | -6/Extension | Rescued a captive Derelict 15368 | -6/Extension | Discovered new exit (range 10) 15369 | -6/Extension | Discovered new exit (range 6) 15390 | -6/Extension | Entered Cetus 15390 | -6/Cetus | Accompanied by 8 allies (A7) 15395 | -6/Cetus | Acquired a Cetus Manufacturing Module code from A7 15417 | -6/Cetus | Spotted Cetus Guard 15417 | -6/Cetus | Spotted Cetus Guard 15422 | -6/Cetus | Spotted Cetus Guard 15424 | -6/Cetus | Allies destroyed Cetus Guard 15424 | -6/Cetus | Allies destroyed Cetus Guard 15426 | -6/Cetus | Destroyed Cetus Guard 15428 | -6/Cetus | Spotted Cetus Guard 15433 | -6/Cetus | Allies destroyed Cetus Guard 15490 | -6/Cetus | System corruption reached 10% 15524 | -6/Cetus | Started Cetus Manufacturing Module 15549 | -6/Cetus | Manufactured an Enhanced Grunt 15574 | -6/Cetus | Manufactured an Enhanced Grunt 15587 | -6/Cetus | Escorted A7 to Cetus Mainframe 15597 | -6/Cetus | Discovered new exit (range 22) 15599 | -6/Cetus | Manufactured an Enhanced Grunt 15624 | -6/Cetus | Manufactured an Enhanced Grunt 15637 | -6/Cetus | Spotted Cetus Guard 15637 | -6/Cetus | Spotted Cetus Guard 15637 | -6/Cetus | Spotted Cetus Guard 15643 | -6/Cetus | Destroyed Cetus Guard 15643 | -6/Cetus | Spotted Cetus Guard 15648 | -6/Cetus | Destroyed Cetus Guard 15649 | -6/Cetus | Manufactured an Enhanced Grunt 15654 | -6/Cetus | Allies destroyed Cetus Guard 15658 | -6/Cetus | Discovered new exit (range 21) 15661 | -6/Cetus | Allies destroyed Cetus Guard 15676 | -6/Cetus | Met Revision 17 15784 | -6/Cetus | Entered Archives 15784 | -6/Archives | Accompanied by 10 allies (A7) 15789 | -6/Archives | Received a hacking code to weaken MAIN.C 15841 | -6/Archives | Discovered new exit (range 15) 16041 | -6/Archives | Discovered new exit (range 16) 16514 | -6/Archives | Build established: Scavenger-Tank 20440 | -6/Archives | Entered Hub_04(d) 20440 | -6/Hub_04(d) | Accompanied by 6 allies 20476 | -6/Hub_04(d) | Spotted B-75 Beast 20790 | -6/Hub_04(d) | First assault squad dispatched 20939 | -6/Hub_04(d) | Discovered new exit (range 11) 21144 | -6/Hub_04(d) | Discovered new exit (range 3) 21157 | -6/Hub_04(d) | Network Hub disabled 21162 | -6/Hub_04(d) | Spotted Lightning 21174 | -6/Hub_04(d) | Spotted Lightning 21184 | -6/Hub_04(d) | Destroyed Lightning 21184 | -6/Hub_04(d) | Spotted Lightning 21190 | -6/Hub_04(d) | Spotted Lightning 21194 | -6/Hub_04(d) | Spotted Lightning 21198 | -6/Hub_04(d) | Spotted Lightning 21201 | -6/Hub_04(d) | Destroyed Lightning 21227 | -6/Hub_04(d) | Destroyed Lightning 21240 | -6/Hub_04(d) | Destroyed Lightning 21243 | -6/Hub_04(d) | Destroyed Lightning 21264 | -6/Hub_04(d) | Destroyed 19 combat bots 21295 | -6/Hub_04(d) | Destroyed Lightning 21327 | -6/Hub_04(d) | Found Prototype Device 21327 | -6/Hub_04(d) | Identified Exp. Phase Shifter 21334 | -6/Hub_04(d) | Found Prototype Energy Cannon 21334 | -6/Hub_04(d) | Identified EMDS 21382 | -6/Hub_04(d) | Found Prototype Device 21382 | -6/Hub_04(d) | Identified Exp. EM Disruption Field 21403 | -6/Hub_04(d) | Found Prototype Processor 21404 | -6/Hub_04(d) | Identified Exp. Targeting Computer 21450 | -6/Hub_04(d) | Found Exp. Phase Shifter 21474 | -6/Hub_04(d) | Found EMDS 21526 | -6/Hub_04(d) | Network Hub disabled 21529 | -6/Hub_04(d) | Entered Factory 21529 | -5/Factory | Evolved 2 slots: Power x1, Propulsion x1 21650 | -5/Factory | Repaired Adv. KE Penetrator 21750 | -5/Factory | Repaired Adv. KE Penetrator? 21829 | -5/Factory | First assault squad dispatched 22140 | -5/Factory | Spotted B-75 Beast 22294 | -5/Factory | Repaired Exp. Cooling System 22722 | -5/Factory | Discovered new exit (range 6) 22763 | -5/Factory | Repaired Centrium Medium Armor Plating? 22947 | -5/Factory | Identified exit to Upper Caves 22947 | -5/Factory | Entered Upper Caves 23465 | -5/Upper Caves | Build established: Scavenger-Mutant 23587 | -5/Upper Caves | Discovered new exit (range 15) 23601 | -5/Upper Caves | Identified exit to Upper Caves 23714 | -5/Upper Caves | Entered another Upper Caves area 23967 | -5/Upper Caves | Discovered new exit (range 5) 23973 | -5/Upper Caves | Learned Factory stockpile data 24103 | -5/Upper Caves | Learned Factory terminal intel 24241 | -5/Upper Caves | Discovered new exit (range 9) 24250 | -5/Upper Caves | Identified exit to Zhirov 24418 | -5/Upper Caves | Entered Zhirov 24418 | -5/Zhirov | Discovered new exit (range 3) 24436 | -5/Zhirov | Met Zhirov 24455 | -5/Zhirov | Learned location of Quarantine (-2) 24455 | -5/Zhirov | Learned location of Testing (-3) 24455 | -5/Zhirov | Learned location of Command (-1) 24465 | -5/Zhirov | Zhirov requested help retrieving the SGEMP Prototype 24481 | -5/Zhirov | Found Alien Artifact 24481 | -5/Zhirov | Identified Integrated Reactor 24481 | -5/Zhirov | Installed Integrated Reactor, increased core energy generation (+10) 24543 | -5/Zhirov | Found Alien Artifact 24596 | -5/Zhirov | Identified exit to Proximity Caves 24689 | -5/Zhirov | Entered Proximity Caves 24866 | -4/Proximity Caves | Attracted the attention of an 0b10 checkpoint 24893 | -4/Proximity Caves | Build established: Scavenger-Tank 25007 | -4/Proximity Caves | Discovered new exit (range 15) 25048 | -4/Proximity Caves | Identified exit to Factory 25228 | -4/Proximity Caves | Entered Factory 25228 | -4/Factory | Evolved 2 slots: Utility x2 25230 | -4/Factory | Loaded intel: 26 terminal locations 25338 | -4/Factory | Repaired Broken Adv. KE Penetrator 25387 | -4/Factory | Repaired Cld. Plasma Cannon? 25418 | -4/Factory | Garrison activated, responded to threat 25459 | -4/Factory | Build established: Scavenger-Mutant 25650 | -4/Factory | Found Quantum Capacitor 25751 | -4/Factory | Repaired Enh. Biometal Leg 25943 | -4/Factory | P-70 Sage assimilated allied Technician 7a 26168 | -4/Factory | Identified exit to Upper Caves 26554 | -4/Factory | Fabricated Exp. Weapon Shielding? 26664 | -4/Factory | Build established: Scavenger-Tank 26883 | -4/Factory | Found Prototype Processor 27028 | -4/Factory | First assault squad dispatched 27119 | -4/Factory | Destroyed 10 combat bots 27255 | -4/Factory | Repaired Broken Enh. Biometal Leg? 27384 | -4/Factory | Entered Upper Caves 27630 | -4/Upper Caves | Found Alien Artifact 27630 | -4/Upper Caves | Identified Core Expander 27630 | -4/Upper Caves | Installed Core Expander, added new Propulsion slot 27673 | -4/Upper Caves | Encountered a Warlord checkpoint 27688 | -4/Upper Caves | Learned Research interactive machine intel 27808 | -4/Upper Caves | Build established: Scavenger-Mutant 27812 | -4/Upper Caves | Discovered new exit (range 14) 27824 | -4/Upper Caves | Identified exit to Upper Caves 27825 | -4/Upper Caves | Entered another Upper Caves area 27882 | -4/Upper Caves | Discovered new exit (range 9) 28256 | -4/Upper Caves | Discovered new exit (range 15) 28280 | -4/Upper Caves | Identified exit to Warlord 28281 | -4/Upper Caves | Entered Warlord 28329 | -4/Warlord | System corruption cleaned by Quarantine Array 28560 | -4/Warlord | Build established: Scavenger-Tank 28584 | -4/Warlord | Visited the Vortex Lab 28591 | -4/Warlord | Warlord's base attacked by MAIN.C 28591 | -4/Warlord | Found Prototype Piercing Weapon 28591 | -4/Warlord | Identified Vortex Lance 28595 | -4/Warlord | Found Prototype Launcher 28598 | -4/Warlord | Found Vortex Lance 28649 | -4/Warlord | Identified Vortex Catalyst Activator 28676 | -4/Warlord | Met Warlord 28691 | -4/Warlord | Found Prototype Reactor 28691 | -4/Warlord | Identified Vortex Chain Reactor 28707 | -4/Warlord | Found Exp. Phase Shifter 28941 | -4/Warlord | Warlord forces counterattacked 28966 | -4/Warlord | Opened side exit 28985 | -4/Warlord | Discovered new exit (range 10) 28992 | -4/Warlord | Spotted Executioner 28992 | -4/Warlord | Spotted Striker 28992 | -4/Warlord | Spotted Executioner 28995 | -4/Warlord | Identified exit to Proximity Caves 28997 | -4/Warlord | Entered Proximity Caves 29145 | -3/Proximity Caves | Spotted B-86 Titan 29209 | -3/Proximity Caves | Destroyed B-86 Titan 29512 | -3/Proximity Caves | Discovered new exit (range 13) 29563 | -3/Proximity Caves | Identified exit to Research 29564 | -3/Proximity Caves | Entered Research 29564 | -3/Research | Evolved 2 slots: Utility x2 29565 | -3/Research | Identified exit to Armory 29566 | -3/Research | Loaded intel: 43 interactive machine locations 29627 | -3/Research | Build established: Scavenger-Mutant 29764 | -3/Research | Revision forces began assault on 0b10 29800 | -3/Research | Met up with Revision 17++ 29866 | -3/Research | Identified exit to Testing 30264 | -3/Research | Research terminal network offline 30319 | -3/Research | Discovered new exit (range 12) 30443 | -3/Research | Repaired Broken Adv. Force Field 30498 | -3/Research | Repaired Enh. Biometal Leg 30625 | -3/Research | Found Gamma Bomb Array 30772 | -3/Research | Repaired Exp. Weapon Shielding 30783 | -3/Research | Entered Testing 30815 | -3/Testing | Found Prototype Leg 30815 | -3/Testing | Identified Myomer Exoskeleton 31107 | -3/Testing | Found Prototype Device 31120 | -3/Testing | Found Prototype Energy Cannon 31120 | -3/Testing | Identified Potential Cannon 31248 | -3/Testing | Found Prototype Device 31248 | -3/Testing | Identified AEGIS Remote Shield 31257 | -3/Testing | Destroyed 9 combat bots 31314 | -3/Testing | Found Exp. EM Disruption Field 31533 | -3/Testing | First assault squad dispatched 31565 | -3/Testing | Identified Exp. Focal Shield 31739 | -3/Testing | Discovered new exit (range 14) 31836 | -3/Testing | Found Prototype Protection 31836 | -3/Testing | Identified SHELL Armor 31903 | -3/Testing | Entered Research 31903 | -2/Research | Warlord forces began assault on 0b10 31903 | -2/Research | Evolved 2 slots: Utility x2 31927 | -2/Research | Build established: Mutant 31929 | -2/Research | Found Prototype Processor 31929 | -2/Research | Identified Exp. Core Analyzer 32013 | -2/Research | Research machine network offline 32125 | -2/Research | Borebot progress halted 32141 | -2/Research | Found Prototype Device 32141 | -2/Research | Identified Exp. Transmission Jammer 32176 | -2/Research | Discovered new exit (range 4) 32284 | -2/Research | Spotted Executioner 32334 | -2/Research | Met up with Warlord 32335 | -2/Research | Discovered new exit (range 12) 32487 | -2/Research | Spotted Striker 32493 | -2/Research | Spotted Executioner 32514 | -2/Research | Destroyed Striker 32555 | -2/Research | Borebot progress halted 32582 | -2/Research | Found Prototype Device 32582 | -2/Research | Identified Adv. Kinecellerator 32841 | -2/Research | Spotted Executioner 32861 | -2/Research | Spotted Striker 32880 | -2/Research | Destroyed Striker 33052 | -2/Research | Entered Quarantine 33066 | -2/Quarantine | Found Alien Artifact 33086 | -2/Quarantine | Found Alien Energy Cannon 33086 | -2/Quarantine | Identified Core Cannon 33442 | -2/Quarantine | Repaired Exp. Myomer Leg 33482 | -2/Quarantine | Build established: Hacker-Mutant 33551 | -2/Quarantine | Repaired Coolant Network 33736 | -2/Quarantine | Found Alien Artifact 33736 | -2/Quarantine | Identified Phase Armor 33819 | -2/Quarantine | Cryocooling Duct disabled 33834 | -2/Quarantine | Ambient heat levels rising (+20) 33834 | -2/Quarantine | Non-combat units ordered to evacuate 34216 | -2/Quarantine | Discovered new exit (range 16) 34299 | -2/Quarantine | Met incapacitated Sigix Warrior 34299 | -2/Quarantine | Lockdown squad dispatched 34433 | -2/Quarantine | Spotted Lightning 34439 | -2/Quarantine | Spotted Lightning 34440 | -2/Quarantine | Spotted Lightning 34454 | -2/Quarantine | Destroyed Lightning 34491 | -2/Quarantine | Destroyed Lightning 34498 | -2/Quarantine | Destroyed Lightning 34508 | -2/Quarantine | Found EMDS 34619 | -2/Quarantine | Build established: Hacker-Tank 34802 | -2/Quarantine | Spotted Fortress 34913 | -2/Quarantine | Found Alien Impact Weapon 34916 | -2/Quarantine | Identified Core Stripper 35071 | -2/Quarantine | Destroyed Fortress 35102 | -2/Quarantine | Found Prototype Device 35102 | -2/Quarantine | Identified Thermal Barrier 35111 | -2/Quarantine | Found Prototype Device 35111 | -2/Quarantine | Identified Exp. Force Field 35300 | -2/Quarantine | Repaired Exp. Weapon Shielding 35412 | -2/Quarantine | Repaired Enh. Biometal Leg 35513 | -2/Quarantine | Repaired Particle Accelerator? 35700 | -2/Quarantine | Discovered new exit (range 6) 35705 | -2/Quarantine | Entered Section 7 35714 | -2/Section 7 | Build established: Scavenger-Mutant 35718 | -2/Section 7 | Found Alien Artifact 35718 | -2/Section 7 | Identified Integrity Redistributor 35718 | -2/Section 7 | Used Integrity Redistributor, redistributed integrity from core (-132) 35824 | -2/Section 7 | Spotted B-90 Cyclops 35840 | -2/Section 7 | Destroyed B-90 Cyclops 35880 | -2/Section 7 | Identified Subatomic Replicator 35880 | -2/Section 7 | Used Subatomic Replicator to create Alien Artifact 35883 | -2/Section 7 | Identified Supercharged Integrated Reactor 35883 | -2/Section 7 | Installed Supercharged Integrated Reactor, increased core energy generation (+15) 36019 | -2/Section 7 | Found Quantum Capacitor 36028 | -2/Section 7 | Spotted S7 Guard 36096 | -2/Section 7 | Destroyed S7 Guard 36111 | -2/Section 7 | Found Alien Energy Cannon 36111 | -2/Section 7 | Identified Sigix Shearcannon 36167 | -2/Section 7 | Found Integrated Reactor 36167 | -2/Section 7 | Installed Integrated Reactor, increased core energy generation (+10) 36323 | -2/Section 7 | Found Alien Artifact 36323 | -2/Section 7 | Identified Spacefold Activator 36551 | -2/Section 7 | Found Integrated Reactor 36551 | -2/Section 7 | Installed Integrated Reactor, increased core energy generation (+10) 36816 | -2/Section 7 | Repaired Exp. Weapon Shielding 36838 | -2/Section 7 | Spotted S7 Guard 36853 | -2/Section 7 | Found Alien Artifact 36911 | -2/Section 7 | Identified Core Membrane 36911 | -2/Section 7 | Installed Core Membrane, gained immunity to corruption 37018 | -2/Section 7 | Discovered new exit (range 13) 37076 | -2/Section 7 | Spotted S7 Guard 37080 | -2/Section 7 | Destroyed S7 Guard 37125 | -2/Section 7 | Found Alien Artifact 37264 | -2/Section 7 | Destroyed S7 Guard 37340 | -2/Section 7 | Identified Integrated Thermoelectric Network 37340 | -2/Section 7 | Installed Integrated Thermoelectric Network, gained heat-energy exchange potential 37473 | -2/Section 7 | Spotted B-99 Colossus 37520 | -2/Section 7 | Found Alien Artifact 37521 | -2/Section 7 | Identified Integrated Dissipator 37521 | -2/Section 7 | Installed Integrated Dissipator, increased core heat dissipation (+20) 37523 | -2/Section 7 | Found Integrated Dissipator 37523 | -2/Section 7 | Installed Integrated Dissipator, increased core heat dissipation (+20) 37525 | -2/Section 7 | Found Integrated Dissipator 37525 | -2/Section 7 | Installed Integrated Dissipator, increased core heat dissipation (+20) 37537 | -2/Section 7 | Destroyed B-99 Colossus 37574 | -2/Section 7 | Found Alien Artifact 37574 | -2/Section 7 | Identified LRC Insulator 37574 | -2/Section 7 | Installed LRC Insulator, gained EM resistance (25) 37580 | -2/Section 7 | Found Alien Artifact 37580 | -2/Section 7 | Identified LRC Matter Compressor 37580 | -2/Section 7 | Installed LRC Matter Compressor, increased matter storage capacity (+125) 37721 | -2/Section 7 | Door terminal overloaded 37742 | -2/Section 7 | Found Alien Artifact 37744 | -2/Section 7 | Found Alien Artifact 37745 | -2/Section 7 | Identified Terrabomb (x2) 37745 | -2/Section 7 | Used Terrabomb 37755 | -2/Section 7 | Found Alien Artifact 37758 | -2/Section 7 | Found Alien Artifact 37758 | -2/Section 7 | Identified Transdimensional Reconstructor (x2) 37758 | -2/Section 7 | Warped through subspace 37758 | -2/Section 7 | Spotted Striker 37758 | -2/Section 7 | Spotted Striker 37777 | -2/Section 7 | Core integrity fell below 50% 37793 | -2/Section 7 | Spotted Executioner 37795 | -2/Section 7 | Spotted Executioner 37796 | -2/Section 7 | Identified Hpw. Transdimensional Reconstructor 37796 | -2/Section 7 | Warped through subspace 37817 | -2/Section 7 | Build established: Hacker-Mutant 37883 | -2/Section 7 | Entered Access 37883 | -1/Access | Evolved 2 slots: Utility x2 37885 | -1/Access | Identified Exp. Terrain Scan Processor 37948 | -1/Access | Garrison activated, responded to threat 38037 | -1/Access | Destroyed 10 combat bots 38127 | -1/Access | Fabricated Exp. Weapon Shielding (x1) 38185 | -1/Access | Found Antimissile System 38226 | -1/Access | Build established: Scavenger-Mutant 38457 | -1/Access | Identified exit to Command 38517 | -1/Access | Entered Command 38569 | -1/Command | Repaired Exp. Weapon Shielding 38813 | -1/Command | Destroyed 8 combat bots 38959 | -1/Command | Found Exp. Hacking Suite 39125 | -1/Command | Disengaged cave seal 39125 | -1/Command | Derelicts emerged from the dark tunnel 39125 | -1/Command | Welcomed Warlord to Command 39427 | -1/Command | Build established: Hacker-Mutant 39454 | -1/Command | Spotted B-99 Colossus 39513 | -1/Command | Destroyed B-99 Colossus 39516 | -1/Command | Found Hvy. Insulated Plating 39517 | -1/Command | First assault squad dispatched 39549 | -1/Command | Destroyed 7 combat bots 39560 | -1/Command | Found Antimissile System 39625 | -1/Command | Destroyed 9 combat bots 39792 | -1/Command | High security lockdown imminent 39872 | -1/Command | High security lockdown engaged 39890 | -1/Command | Spotted M Guard 39890 | -1/Command | Spotted M Guard 39890 | -1/Command | Spotted Combat Programmer 39895 | -1/Command | Spotted Combat Programmer 39896 | -1/Command | Warlord commented on Warlord statues 39899 | -1/Command | Destroyed M Guard 39902 | -1/Command | Destroyed M Guard 39904 | -1/Command | Destroyed Combat Programmer 39907 | -1/Command | All MAIN.C guards destroyed 39911 | -1/Command | Spotted Executioner 39911 | -1/Command | Spotted Executioner 39911 | -1/Command | Spotted Executioner 39911 | -1/Command | Spotted Executioner 39913 | -1/Command | Destroyed Executioner 40015 | -1/Command | Spotted Investigator 40016 | -1/Command | Scanned by Researcher 40021 | -1/Command | Destroyed Investigator 40046 | -1/Command | Destroyed 7 combat bots 40104 | -1/Command | Met MAIN.C 40107 | -1/Command | 0b10 Conduit disabled 40114 | -1/Command | Hacked MAIN.C using A7's code 40139 | -1/Command | MAIN.C activated Command garrisons 40180 | -1/Command | Build established: Scavenger-Mutant 40210 | -1/Command | Warlord destroyed during the assault 40235 | -1/Command | Destroyed MAIN.C 40243 | -1/Command | Discovered new exit (range 29) 40243 | -1/Command | Discovered new exit (range 83) 40243 | -1/Command | Extracted map data and part IDs from MAIN.C's data core 40289 | -1/Command | Spotted B-99 Colossus 40310 | -1/Command | Found Vortex Chain Reactor 40316 | -1/Command | Found Exp. Hardlight Generator 40319 | -1/Command | Found Exp. Focal Shield 40324 | -1/Command | Lost 3 parts (3u) 40345 | -1/Command | Destroyed B-99 Colossus 42140 | -1/Command | Found Spectral Analyzer 42199 | -1/Command | Found Quantum Capacitor 44128 | -1/Command | Found Exp. Targeting Computer 44171 | -1/Command | Found Quantum Capacitor 44568 | -1/Command | Crushed by falling debris 44698 | -1/Command | Warped through subspace to slip node 44698 | -1/Command | Discovered new exit (range 5) 44703 | -1/Command | Entered Access_0 44704 | -1/Access_0 | Met Architect 44708 | -1/Access_0 | Architect warped through subspace 44725 | -1/Access_0 | Destroyed A8 44768 | -1/Access_0 | Architect warped through subspace 44780 | -1/Access_0 | Found Exp. Force Field 44821 | -1/Access_0 | Core integrity fell below 50% 44835 | -1/Access_0 | Architect warped through subspace 44853 | -1/Access_0 | Found Exp. Thermal Shield 44859 | -1/Access_0 | Found Exp. Powered Armor 44883 | -1/Access_0 | Architect warped through subspace 44921 | -1/Access_0 | A6 warped into view 44926 | -1/Access_0 | Architect warped through subspace 44938 | -1/Access_0 | Destroyed A6 44949 | -1/Access_0 | Found Exp. Powered Armor 44969 | -1/Access_0 | Architect warped through subspace 44999 | -1/Access_0 | Architect warped through subspace 45094 | -1/Access_0 | Architect warped through subspace 45127 | -1/Access_0 | Architect warped through subspace 45154 | -1/Access_0 | Architect warped through subspace 45155 | -1/Access_0 | Lost 7 parts (1n4u2w) 45184 | -1/Access_0 | Architect warped through subspace 45195 | -1/Access_0 | Found Vibroblade 45205 | -1/Access_0 | Found Exp. Shield Generator 45219 | -1/Access_0 | Architect warped through subspace 45283 | -1/Access_0 | Core integrity fell below 20% 45304 | -1/Access_0 | Destroyed by Architect with Modified Sigix Sheargun Last Messages --------------- 45285_ Quantum Capacitor destroyed. 45285_ Quantum Shear penetrates Enhanced Grunt. 45285_ Penetrated by Quantum Shear. 45290_ Quantum Shear penetrates Earth. 45292_ Quantum Shear penetrates Wall. 45292_ Imp. Energy Well severed. 45292_ Penetrated by Quantum Shear. 45293_ Exp. Powered Armor destroyed. 45294_ Vibroblade follow-up attack on Architect. 45294_ Quantum Shear penetrates Earth. 45294_ Quantum Shear penetrates Wall. 45294_ Quantum Shear penetrates Earth. 45297_ Penetrated by Quantum Shear. 45298_ Exp. Force Field destroyed. 45298_ Exp. Biometal Leg destroyed. 45299_ Penetrated by Quantum Shear. 45300_ Hdn. Centrium Leg destroyed. 45301_ Penetrated by Quantum Shear. 45301_ Quantum Shear penetrates Wall. 45301_ Penetrated by Quantum Shear. Map ----- +----------------------------------------------------+ | ?????????????????????????????????????????????????? | | ?????????????????????????????????????????????????? | | ?????????????????????????????????????????????????? | | ?????????????????????????????????????????????????? | | ?????????????????????????????????????????????????? | | ?????????????????????????????????????????????????? | | ?????????????????????????????????????????????????? | | ?????????????????????????????????????????????????? | | ?????????????????????????????????????????????????? | | ???????????????????????##???????????????? ???????? | | ???????????????????????# ??????????????? ????????? | | ???????????????????????# ?????????????? ?????????? | | ???????????????????????# ????????????#;???????#?# | | ???????????????????????# ???????????# #???? ?#?#?? | | ???????????????????????# ??????????# #??? ??#?#??? | | ???????????????????????# ?????????# ###?? #### | | ???????????????????????# #####???# #???? ##?## | | ????????????????????####;; ;;??# #####? ? # ## ## | | ????????????????????? ; ### ##?##?? ? # | | ?????????????????????#; #;###??# | | ?????????????????#???#; #;###### ? | | ?????????????????# ;?# ;####??? ## | | ?????????????????# ; #;;; ;;##???#### | | ?????????????????#;; ;;;; ;;;;#### #?## | | ????????????????##; g=;;;;### ##?# | | ????????????????#;; @ !g] ; ## ###### | | ????????????????## 0 gg! ;; ## ###### | | ?????????????????## ;; g ;;### ## ## | | ??????????????????#;;;;;; ;### | | ??????????????????#### #; | | ?????????????????????#### % | | ????????????????????????## ### | | ?????????????????????????## ### | | ????????????????????#???### ########;; | | ????????????????????# ### ##?###### ; | | ??????#" "#### #??######? # | | ??? ###### ### ### ### | | ??? # ## ########### | | ??????#" "####### #######?####### | | ??????#"" """"" ???????# # # ########## | | ???????????###??????#### ######## | | ????????????????##### # ## ## | | ????????????????# ## ## | | ????????????????#"""" # ## | | ?????????????????"!= # | | ?????????????????" = | | ?????????????????" = | | ?????????????????"[!! | | ?????????????????"" | | ??????????????????## # | +----------------------------------------------------+ Best States ------------- Heat Dissipation 139 Energy Generation 100 Energy Capacity 1900 Matter Stores 925 Matter Capacity 925 Sight Range 24 Robot Scan Range 20 Terrain Scan Range 24 Terrain Scan Density 1010 Jamming Range 22 Armor Coverage 3650 Resistance: KI 30 Resistance: TH 50 Resistance: EM 100 Utility Shielding 90 Weapon Shielding 90 Point Defense Rating 480 Weapon Cycling 25 Phase Shifting 20 Evasion (%) 82 Targeting Accuracy 24 Core Analysis 8 Armor Integrity Analysis 40 Recoil Reduction 4 Particle Charging 30 Offensive Hacking 44 Defensive Hacking 10 Authchip Count 2 Item Schematics ----------------- Huge Storage Unit | -9/Materials | Hacked Adv. EMP Blaster | -8/Materials | Scanalyzed Hcp. Storage Unit | -8/Materials | Hacked Adv. Particle Charger | -6/Extension | Hacked Assault Drone Bay | -5/Zhirov | Free Exp. Heat Sink | -5/Zhirov | Free Exp. Optical Array | -5/Zhirov | Free Imp. Arc Thrower | -5/Zhirov | Free Exp. Weapon Shielding | -4/Factory | Hacked Robot Schematics ------------------ None Fabricated ------------ Exp. Weapon Shielding | x1 | -4/Factory Exp. Weapon Shielding | x1 | -1/Access Alien Tech Used ----------------- Integrated Reactor Core Expander Core Cannon Phase Armor Core Stripper Integrity Redistributor Subatomic Replicator Supercharged Integrated Reactor Sigix Shearcannon Spacefold Activator Core Membrane Integrated Thermoelectric Network Integrated Dissipator LRC Insulator LRC Matter Compressor Terrabomb Transdimensional Reconstructor High-powered Transdimensional Reconstructor Achievements -------------- Equal Opportunity Bot Giant Slayer Revolutionary Research Challenges ------------ None Game ------ Seed LightLongswordLoader Manual? 0 Play Time 11:11:57 Cumulative 525.6 hours Start 2022.04.15 @ 23:30:11 End 2022.04.18 @ 08:49:18 Sessions 25 Manual Loads 0 Difficulty Rogue Special Mode None Game No. 160 Rogue 156 Adventurer 4 Explorer 0 Win Type - Total 13 Types 6/2/3/0/0/0/1/1/0 Lore% 82 Gallery% 86 Achievement% 73 Wizard Run 0 Options --------- ASCII 1 Keyboard 0 Movement Arrows Keybinds 0 Fullscreen 1 Font 18/SmallcapsGlow Map View 76x50 Tactical HUD 1 Map Filters NONE Filters NONE Steam 1 RUN: 9e03e37b-d267-4c33-a25a-73bd9221f473